Effective Date,Department,Supplier Name,Payment Date,Amount **,Purpose of Spend,Merchant Category,Card Transaction
Statement Date 18/06/2015 to 17/07/2015,Adults and Communities,A S HANDOVER,15/07/2015,16.94,Other Expenditure - General,"Artist Supply Stores, Craft Shops",GPC
Statement Date 18/06/2015 to 17/07/2015,Adults and Communities,ALDI,29/06/2015,69.87,Materials - General,"Grocery Stores, Supermarkets",GPC
Statement Date 18/06/2015 to 17/07/2015,Adults and Communities,ALDI,25/06/2015,9.93,Provisions - General,"Grocery Stores, Supermarkets",GPC
Statement Date 18/06/2015 to 17/07/2015,Adults and Communities,Amazon Svcs Europe SAR,26/06/2015,-6.11,Books - General,Book Stores,GPC
Statement Date 18/06/2015 to 17/07/2015,Adults and Communities,Amazon Svcs Europe SAR,03/07/2015,44.89,Books - General,Book Stores,GPC
Statement Date 18/06/2015 to 17/07/2015,Adults and Communities,Amazon Svcs Europe SAR,23/06/2015,7.17,Other Equipment & Materials - General,Book Stores,GPC
Statement Date 18/06/2015 to 17/07/2015,Adults and Communities,Amazon UK Marketplace,19/06/2015,10.25,Books - General,Book Stores,GPC
Statement Date 18/06/2015 to 17/07/2015,Adults and Communities,Amazon UK Marketplace,26/06/2015,17.80,Books - General,Miscellaneous and Specialty Retail Stores,GPC
Statement Date 18/06/2015 to 17/07/2015,Adults and Communities,Amazon UK Marketplace,02/07/2015,29.80,Books - General,Book Stores,GPC
Statement Date 18/06/2015 to 17/07/2015,Adults and Communities,Amazon UK Marketplace,20/06/2015,35.85,General Equipment - General,Miscellaneous and Specialty Retail Stores,GPC
Statement Date 18/06/2015 to 17/07/2015,Adults and Communities,Amazon UK Marketplace,03/07/2015,9.70,General Equipment - General,Book Stores,GPC
Statement Date 18/06/2015 to 17/07/2015,Adults and Communities,Amazon UK Marketplace,04/07/2015,98.31,General Equipment - General,Book Stores,GPC
Statement Date 18/06/2015 to 17/07/2015,Adults and Communities,Amazon UK Marketplace,24/06/2015,25.95,Materials - General,Miscellaneous and Specialty Retail Stores,GPC
Statement Date 18/06/2015 to 17/07/2015,Adults and Communities,Amazon UK Marketplace,17/06/2015,2.39,Other Equipment & Materials - General,Book Stores,GPC
Statement Date 18/06/2015 to 17/07/2015,Adults and Communities,Amazon UK Marketplace,26/06/2015,10.95,Other Expenditure - General,Miscellaneous and Specialty Retail Stores,GPC
Statement Date 18/06/2015 to 17/07/2015,Adults and Communities,Amazon UK Marketplace,01/07/2015,10.95,Other Expenditure - General,Miscellaneous and Specialty Retail Stores,GPC
Statement Date 18/06/2015 to 17/07/2015,Adults and Communities,Amazon UK Marketplace,23/06/2015,44.91,Other Services - General,Book Stores,GPC
Statement Date 18/06/2015 to 17/07/2015,Adults and Communities,Amazon UK Marketplace,18/06/2015,5.30,Stationery - General,Miscellaneous and Specialty Retail Stores,GPC
Statement Date 18/06/2015 to 17/07/2015,Adults and Communities,Amazon UK Marketplace,02/07/2015,11.33,Stationery - General,Miscellaneous and Specialty Retail Stores,GPC
Statement Date 18/06/2015 to 17/07/2015,Adults and Communities,Amazon UK Marketplace,08/07/2015,6.62,Stationery - General,Miscellaneous and Specialty Retail Stores,GPC
Statement Date 18/06/2015 to 17/07/2015,Adults and Communities,Amazon UK Marketplace,10/07/2015,3.31,Stationery - General,Miscellaneous and Specialty Retail Stores,GPC
Statement Date 18/06/2015 to 17/07/2015,Adults and Communities,Amazon UK Marketplace,10/07/2015,4.35,Stationery - General,Miscellaneous and Specialty Retail Stores,GPC
Statement Date 18/06/2015 to 17/07/2015,Adults and Communities,Amazon UK Retail,23/06/2015,41.99,Books - General,Direct Marketers - Other,GPC
Statement Date 18/06/2015 to 17/07/2015,Adults and Communities,Amazon UK Retail,27/06/2015,9.57,Materials - General,Direct Marketers - Other,GPC
Statement Date 18/06/2015 to 17/07/2015,Adults and Communities,Amazon UK Retail,15/07/2015,12.03,Operational Equipment - General,Direct Marketers - Other,GPC
Statement Date 18/06/2015 to 17/07/2015,Adults and Communities,Amazon UK Retail,19/06/2015,11.67,Other Equipment & Materials - General,Direct Marketers - Other,GPC
Statement Date 18/06/2015 to 17/07/2015,Adults and Communities,Amazon UK Retail,23/06/2015,7.49,Other Expenditure - General,Direct Marketers - Other,GPC
Statement Date 18/06/2015 to 17/07/2015,Adults and Communities,Amazon UK Retail,23/06/2015,7.49,Other Expenditure - General,Direct Marketers - Other,GPC
Statement Date 18/06/2015 to 17/07/2015,Adults and Communities,Amazon UK Retail,23/06/2015,5.45,Other Expenditure - General,Direct Marketers - Other,GPC
Statement Date 18/06/2015 to 17/07/2015,Adults and Communities,Amazon UK Retail,23/06/2015,81.72,Other Expenditure - General,Direct Marketers - Other,GPC
Statement Date 18/06/2015 to 17/07/2015,Adults and Communities,Amazon UK Retail,28/06/2015,24.62,Other Expenditure - General,Direct Marketers - Other,GPC
Statement Date 18/06/2015 to 17/07/2015,Adults and Communities,Amazon UK Retail,06/07/2015,69.80,Other Expenditure - General,Direct Marketers - Other,GPC
Statement Date 18/06/2015 to 17/07/2015,Adults and Communities,Amazon UK Retail,13/07/2015,53.84,Other Expenditure - General,Direct Marketers - Other,GPC
Statement Date 18/06/2015 to 17/07/2015,Adults and Communities,Amazon UK Retail,20/06/2015,17.23,Stationery - General,Direct Marketers - Other,GPC
Statement Date 18/06/2015 to 17/07/2015,Adults and Communities,Amazon UK Retail,01/07/2015,19.94,Stationery - General,Direct Marketers - Other,GPC
Statement Date 18/06/2015 to 17/07/2015,Adults and Communities,Amazon UK Retail,09/07/2015,10.28,Stationery - General,Direct Marketers - Other,GPC
Statement Date 18/06/2015 to 17/07/2015,Adults and Communities,AmazonLocal,19/06/2015,19.00,Materials - General,Miscellaneous and Specialty Retail Stores,GPC
Statement Date 18/06/2015 to 17/07/2015,Adults and Communities,ARGOS LTD,15/07/2015,18.99,Display/Conservn/Exhibitions - Conservation,Discount Stores,GPC
Statement Date 18/06/2015 to 17/07/2015,Adults and Communities,ARGOS LTD,03/07/2015,36.46,Materials - General,Discount Stores,GPC
Statement Date 18/06/2015 to 17/07/2015,Adults and Communities,ARGOS LTD,16/07/2015,142.48,Materials - General,Discount Stores,GPC
Statement Date 18/06/2015 to 17/07/2015,Adults and Communities,ARGOS LTD,14/07/2015,63.31,R & M of Buildings - General,Discount Stores,GPC
Statement Date 18/06/2015 to 17/07/2015,Adults and Communities,ARGOS LTD,16/07/2015,19.99,Stationery - General,Discount Stores,GPC
Statement Date 18/06/2015 to 17/07/2015,Adults and Communities,ASDA STORES,06/07/2015,9.00,Materials - General,"Grocery Stores, Supermarkets",GPC
Statement Date 18/06/2015 to 17/07/2015,Adults and Communities,ASDA SUPERSTORE,30/06/2015,47.05,Provisions - General,"Grocery Stores, Supermarkets",GPC
Statement Date 18/06/2015 to 17/07/2015,Adults and Communities,ASDA SUPERSTORE,16/07/2015,134.90,Provisions - General,"Grocery Stores, Supermarkets",GPC
Statement Date 18/06/2015 to 17/07/2015,Adults and Communities,B & Q,10/07/2015,48.50,R & M of Buildings - General,"Building Materials, Lumber Stores",GPC
Statement Date 18/06/2015 to 17/07/2015,Adults and Communities,B&M RETAIL LTD,29/06/2015,19.39,Materials - General,Discount Stores,GPC
Statement Date 18/06/2015 to 17/07/2015,Adults and Communities,B&M RETAIL LTD,01/07/2015,15.98,Operational Equipment - General,Discount Stores,GPC
Statement Date 18/06/2015 to 17/07/2015,Adults and Communities,BELTON HOUSE OFFIC,22/06/2015,65.00,Display/Conservn/Exhibitions - Conservation,Charitable and Social Service Organizations,GPC
Statement Date 18/06/2015 to 17/07/2015,Adults and Communities,CARE ESSENTIALS,06/07/2015,72.00,Other Equipment & Materials - General,Laboratory/Medical/Dental/Ophthalmic Hospital Equi,GPC
Statement Date 18/06/2015 to 17/07/2015,Adults and Communities,CENTRAL ENG COOP,20/06/2015,7.79,Materials - General,Department Stores,GPC
Statement Date 18/06/2015 to 17/07/2015,Adults and Communities,CENTRAL ENG COOP,23/06/2015,13.00,Materials - General,Department Stores,GPC
Statement Date 18/06/2015 to 17/07/2015,Adults and Communities,CENTRAL ENG COOP,24/06/2015,38.59,Materials - General,Department Stores,GPC
Statement Date 18/06/2015 to 17/07/2015,Adults and Communities,CENTRAL ENG COOP,25/06/2015,26.47,Materials - General,Department Stores,GPC
Statement Date 18/06/2015 to 17/07/2015,Adults and Communities,CENTRAL ENG COOP,27/06/2015,10.72,Materials - General,Department Stores,GPC
Statement Date 18/06/2015 to 17/07/2015,Adults and Communities,CENTRAL ENG COOP,30/06/2015,11.78,Materials - General,Department Stores,GPC
Statement Date 18/06/2015 to 17/07/2015,Adults and Communities,CENTRAL ENG COOP,04/07/2015,9.18,Materials - General,Department Stores,GPC
Statement Date 18/06/2015 to 17/07/2015,Adults and Communities,CENTRAL ENG COOP,06/07/2015,30.88,Materials - General,Department Stores,GPC
Statement Date 18/06/2015 to 17/07/2015,Adults and Communities,CENTRAL ENG COOP,09/07/2015,35.24,Materials - General,Department Stores,GPC
Statement Date 18/06/2015 to 17/07/2015,Adults and Communities,CENTRAL ENG COOP,10/07/2015,39.08,Materials - General,Department Stores,GPC
Statement Date 18/06/2015 to 17/07/2015,Adults and Communities,CENTRAL ENG COOP,10/07/2015,32.63,Materials - General,Department Stores,GPC
Statement Date 18/06/2015 to 17/07/2015,Adults and Communities,CENTRAL ENG COOP,16/07/2015,26.92,Materials - General,Department Stores,GPC
Statement Date 18/06/2015 to 17/07/2015,Adults and Communities,CO-OP GROUP 171441,16/07/2015,3.40,Provisions - General,"Grocery Stores, Supermarkets",GPC
Statement Date 18/06/2015 to 17/07/2015,Adults and Communities,COSTA COFFEE,02/07/2015,5.30,Other Expenditure - General,"Eating Places, Restaurants",GPC
Statement Date 18/06/2015 to 17/07/2015,Adults and Communities,COSTA COFFEE,02/07/2015,5.00,Other Expenditure - General,"Eating Places, Restaurants",GPC
Statement Date 18/06/2015 to 17/07/2015,Adults and Communities,CURRYS ONLINE,30/06/2015,69.99,Personal Needs of Clients - General,"RADIO, TELEVISION, AND STEREO STORES (ELECTRONIC STORES)",GPC
Statement Date 18/06/2015 to 17/07/2015,Adults and Communities,CW Estate Agent,25/06/2015,99.00,Schools Agency staff - Teaching Staff,Miscellaneous Personal Services-Not Elsewhere Clas,GPC
Statement Date 18/06/2015 to 17/07/2015,Adults and Communities,E COAST MAIN LN CO LTD,01/07/2015,13.00,Casual/Essential - General,Automobile Parking Lots and Garages,GPC
Statement Date 18/06/2015 to 17/07/2015,Adults and Communities,EAST MIDLANDS TRAI,26/06/2015,3.70,Casual/Essential - General,Passenger Railways,GPC
Statement Date 18/06/2015 to 17/07/2015,Adults and Communities,EAST MIDLANDS TRAI,01/07/2015,10.00,Casual/Essential - General,Passenger Railways,GPC
Statement Date 18/06/2015 to 17/07/2015,Adults and Communities,EASTMIDLANDSTRAINS,25/06/2015,108.00,Casual/Essential - General,Passenger Railways,GPC
Statement Date 18/06/2015 to 17/07/2015,Adults and Communities,EASTMIDLANDSTRAINS,06/07/2015,119.00,Public Transport -  Staff - General,Passenger Railways,GPC
Statement Date 18/06/2015 to 17/07/2015,Adults and Communities,EASTMIDLANDSTRAINS,16/07/2015,245.50,Subsistence - General,Passenger Railways,GPC
Statement Date 18/06/2015 to 17/07/2015,Adults and Communities,ESPO,02/07/2015,55.30,Stationery - General,Government Services-Not Elsewhere Classified,GPC
Statement Date 18/06/2015 to 17/07/2015,Adults and Communities,ESPO,03/07/2015,19.80,Stationery - General,Government Services-Not Elsewhere Classified,GPC
Statement Date 18/06/2015 to 17/07/2015,Adults and Communities,FOOD SAFETY DIRECT LTD,06/07/2015,32.88,General Equipment - General,Miscellaneous and Specialty Retail Stores,GPC
Statement Date 18/06/2015 to 17/07/2015,Adults and Communities,FOREIGN EXCHANGE FEE,06/07/2015,1.75,Communications Equipment - General,Misc-Unknown,GPC
Statement Date 18/06/2015 to 17/07/2015,Adults and Communities,GRAYS KITCHEN,24/06/2015,68.80,Display/Conservn/Exhibitions - Conservation,"Eating Places, Restaurants",GPC
Statement Date 18/06/2015 to 17/07/2015,Adults and Communities,GRO HM PASSPORT OFFICE,22/06/2015,76.65,Other Expenditure - General,Government Services-Not Elsewhere Classified,GPC
Statement Date 18/06/2015 to 17/07/2015,Adults and Communities,GRO HM PASSPORT OFFICE,13/07/2015,23.40,Other Expenditure - General,Government Services-Not Elsewhere Classified,GPC
Statement Date 18/06/2015 to 17/07/2015,Adults and Communities,HALFORDS 0428,01/07/2015,30.00,Other Expenditure - General,Bicycle Shops-Sales and Service,GPC
Statement Date 18/06/2015 to 17/07/2015,Adults and Communities,HANDSET SOLUTIONS,25/06/2015,136.69,Operational Equipment - DDA,Telecommunication Equipment Including Telephone Sa,GPC
Statement Date 18/06/2015 to 17/07/2015,Adults and Communities,HOMEBASE LTD 041,22/06/2015,44.62,General Equipment - General,"Building Materials, Lumber Stores",GPC
Statement Date 18/06/2015 to 17/07/2015,Adults and Communities,HUNTERS PROPERTY LETTI,29/06/2015,500.00,Schools Agency staff - Teaching Staff,Professional Services-Not Elsewhere Classified,GPC
Statement Date 18/06/2015 to 17/07/2015,Adults and Communities,IBIS BRISTOL,16/06/2015,25.50,Display/Conservn/Exhibitions - Conservation,"Lodging-Hotels, Motels, Resorts",GPC
Statement Date 18/06/2015 to 17/07/2015,Adults and Communities,ICELAND,08/07/2015,55.28,Materials - General,"Grocery Stores, Supermarkets",GPC
Statement Date 18/06/2015 to 17/07/2015,Adults and Communities,ICELAND,08/07/2015,14.00,Materials - General,"Grocery Stores, Supermarkets",GPC
Statement Date 18/06/2015 to 17/07/2015,Adults and Communities,ICELAND,25/06/2015,19.84,Provisions - General,"Grocery Stores, Supermarkets",GPC
Statement Date 18/06/2015 to 17/07/2015,Adults and Communities,JEWSON 4328,18/06/2015,30.01,Aids & Adaptations - Minor Adaptations,"Building Materials, Lumber Stores",GPC
Statement Date 18/06/2015 to 17/07/2015,Adults and Communities,JEWSON 4328,01/07/2015,38.79,Aids & Adaptations - Minor Adaptations,"Building Materials, Lumber Stores",GPC
Statement Date 18/06/2015 to 17/07/2015,Adults and Communities,JOHNSTONES DECORATING,18/06/2015,60.00,Aids & Adaptations - Minor Adaptations,"Glass, Paint, Wallpaper Stores",GPC
Statement Date 18/06/2015 to 17/07/2015,Adults and Communities,LAKELAND LIMITED,08/07/2015,3.99,Materials - General,Miscellaneous General Merchandise Stores,GPC
Statement Date 18/06/2015 to 17/07/2015,Adults and Communities,LEIC CITY COUNCIL,23/06/2015,17.00,Other Expenditure - General,Government Services-Not Elsewhere Classified,GPC
Statement Date 18/06/2015 to 17/07/2015,Adults and Communities,LEIC CITY COUNCIL,08/07/2015,13.00,Other Expenditure - General,Government Services-Not Elsewhere Classified,GPC
Statement Date 18/06/2015 to 17/07/2015,Adults and Communities,MAKRO SELF SERVICE LEICES,01/07/2015,40.76,Materials - General,Wholesale Clubs,GPC
Statement Date 18/06/2015 to 17/07/2015,Adults and Communities,MAPLIN-260-LEICESTER,29/06/2015,51.83,Materials - General,"RADIO, TELEVISION, AND STEREO STORES (ELECTRONIC STORES)",GPC
Statement Date 18/06/2015 to 17/07/2015,Adults and Communities,MONKEY WALK,07/07/2015,5.25,Subsistence - General,"Eating Places, Restaurants",GPC
Statement Date 18/06/2015 to 17/07/2015,Adults and Communities,MORPLAN LTD,01/07/2015,67.90,Other Expenditure - General,"Stationery, Office, and School Supply Stores",GPC
Statement Date 18/06/2015 to 17/07/2015,Adults and Communities,NCP LIMITED,19/06/2015,4.80,Other Expenditure - General,Automobile Parking Lots and Garages,GPC
Statement Date 18/06/2015 to 17/07/2015,Adults and Communities,NCP LIMITED,24/06/2015,3.50,Public Transport -  Staff - General,Automobile Parking Lots and Garages,GPC
Statement Date 18/06/2015 to 17/07/2015,Adults and Communities,NCP LIMITED,24/06/2015,3.50,Public Transport -  Staff - General,Automobile Parking Lots and Garages,GPC
Statement Date 18/06/2015 to 17/07/2015,Adults and Communities,OCADO RETAIL LIMIT,19/06/2015,66.77,Provisions - General,"Miscellaneous Food Stores-Convenience Stores, Mark",GPC
Statement Date 18/06/2015 to 17/07/2015,Adults and Communities,OCADO RETAIL LIMIT,22/06/2015,83.65,Provisions - General,"Miscellaneous Food Stores-Convenience Stores, Mark",GPC
Statement Date 18/06/2015 to 17/07/2015,Adults and Communities,OCADO RETAIL LIMIT,26/06/2015,89.17,Provisions - General,"Miscellaneous Food Stores-Convenience Stores, Mark",GPC
Statement Date 18/06/2015 to 17/07/2015,Adults and Communities,OCADO RETAIL LIMIT,29/06/2015,56.11,Provisions - General,"Miscellaneous Food Stores-Convenience Stores, Mark",GPC
Statement Date 18/06/2015 to 17/07/2015,Adults and Communities,OCADO RETAIL LIMIT,02/07/2015,70.86,Provisions - General,"Miscellaneous Food Stores-Convenience Stores, Mark",GPC
Statement Date 18/06/2015 to 17/07/2015,Adults and Communities,OCADO RETAIL LIMIT,06/07/2015,86.72,Provisions - General,"Miscellaneous Food Stores-Convenience Stores, Mark",GPC
Statement Date 18/06/2015 to 17/07/2015,Adults and Communities,OCADO RETAIL LIMIT,09/07/2015,90.82,Provisions - General,"Miscellaneous Food Stores-Convenience Stores, Mark",GPC
Statement Date 18/06/2015 to 17/07/2015,Adults and Communities,OCADO RETAIL LIMIT,13/07/2015,65.19,Provisions - General,"Miscellaneous Food Stores-Convenience Stores, Mark",GPC
Statement Date 18/06/2015 to 17/07/2015,Adults and Communities,OCADO RETAIL LIMIT,16/07/2015,98.57,Provisions - General,"Miscellaneous Food Stores-Convenience Stores, Mark",GPC
Statement Date 18/06/2015 to 17/07/2015,Adults and Communities,PAYPAL,08/07/2015,12.26,General Equipment - General,Advertising Services,GPC
Statement Date 18/06/2015 to 17/07/2015,Adults and Communities,PAYPAL,10/07/2015,29.94,General Equipment - General,Advertising Services,GPC
Statement Date 18/06/2015 to 17/07/2015,Adults and Communities,PAYPAL  AXONEDUCATI,26/06/2015,21.00,Other Equipment & Materials - General,Child Care Services,GPC
Statement Date 18/06/2015 to 17/07/2015,Adults and Communities,PAYPAL  BAMBINOBARG,19/06/2015,3.29,Other Equipment & Materials - General,Children's and Infants' Wear Stores,GPC
Statement Date 18/06/2015 to 17/07/2015,Adults and Communities,PAYPAL  BARGAINKEYL,22/06/2015,3.99,Other Equipment & Materials - General,Camera and Photographic Supply Stores,GPC
Statement Date 18/06/2015 to 17/07/2015,Adults and Communities,PAYPAL  DERBYSHIRE,26/06/2015,2.99,Other Equipment & Materials - General,"Hobby, Toy, and Game Shops",GPC
Statement Date 18/06/2015 to 17/07/2015,Adults and Communities,PAYPAL  EDIGITALSYS,30/06/2015,119.80,General Equipment - General,"RADIO, TELEVISION, AND STEREO STORES (ELECTRONIC STORES)",GPC
Statement Date 18/06/2015 to 17/07/2015,Adults and Communities,PAYPAL  EMMAS1985,19/06/2015,1.54,Other Equipment & Materials - General,Miscellaneous and Specialty Retail Stores,GPC
Statement Date 18/06/2015 to 17/07/2015,Adults and Communities,PAYPAL  EVYARD UK,19/06/2015,5.85,Other Equipment & Materials - General,"Sewing, Needlework, Fabric, and Piece Goods Stores",GPC
Statement Date 18/06/2015 to 17/07/2015,Adults and Communities,PAYPAL  FASTKEYSERV,23/06/2015,17.78,General Equipment - General,Advertising Services,GPC
Statement Date 18/06/2015 to 17/07/2015,Adults and Communities,PAYPAL  FASTKEYSERV,30/06/2015,12.26,General Equipment - General,Advertising Services,GPC
Statement Date 18/06/2015 to 17/07/2015,Adults and Communities,PAYPAL  GRZEGORZBAL,19/06/2015,3.99,Other Equipment & Materials - General,"Miscellaneous Food Stores-Convenience Stores, Mark",GPC
Statement Date 18/06/2015 to 17/07/2015,Adults and Communities,PAYPAL  HDPEDUCATIO,06/07/2015,10.95,IT Equipment - Maintenance,Laboratory/Medical/Dental/Ophthalmic Hospital Equi,GPC
Statement Date 18/06/2015 to 17/07/2015,Adults and Communities,PAYPAL  JANBEAL2007,26/06/2015,5.20,Other Equipment & Materials - General,Women's Ready to Wear Shoes,GPC
Statement Date 18/06/2015 to 17/07/2015,Adults and Communities,PAYPAL  JRIVEAGH,19/06/2015,3.20,Other Equipment & Materials - General,Miscellaneous and Specialty Retail Stores,GPC
Statement Date 18/06/2015 to 17/07/2015,Adults and Communities,PAYPAL  LMCFASHIONL,19/06/2015,0.99,Other Equipment & Materials - General,Miscellaneous Apparel and Accessory Stores,GPC
Statement Date 18/06/2015 to 17/07/2015,Adults and Communities,PAYPAL  MAG.CO.UK,10/07/2015,39.99,Books - General,Book Stores,GPC
Statement Date 18/06/2015 to 17/07/2015,Adults and Communities,PAYPAL  MILENAURT,25/06/2015,79.99,Operational Equipment - DDA,Miscellaneous and Specialty Retail Stores,GPC
Statement Date 18/06/2015 to 17/07/2015,Adults and Communities,PAYPAL  NRS HEALTH,08/07/2015,14.94,Operational Equipment - DDA,Laboratory/Medical/Dental/Ophthalmic Hospital Equi,GPC
Statement Date 18/06/2015 to 17/07/2015,Adults and Communities,PAYPAL  ORIENUKLTD,29/06/2015,44.00,Other Expenditure - General,Business Services-Not Elsewhere Classified,GPC
Statement Date 18/06/2015 to 17/07/2015,Adults and Communities,PAYPAL  OUTWOODCARE,19/06/2015,14.83,Other Equipment & Materials - General,Schools and Educational Services-Not Elsewhere Cla,GPC
Statement Date 18/06/2015 to 17/07/2015,Adults and Communities,PAYPAL  PCOOKE63,18/06/2015,6.00,Other Equipment & Materials - General,Miscellaneous and Specialty Retail Stores,GPC
Statement Date 18/06/2015 to 17/07/2015,Adults and Communities,PAYPAL  PCSTATIONLT,22/06/2015,7.49,Other Equipment & Materials - General,Computer and Data Processing Services,GPC
Statement Date 18/06/2015 to 17/07/2015,Adults and Communities,PAYPAL  PNRMARKETIN,06/07/2015,5.04,IT Equipment - Maintenance,"Management, Consulting and Public Relations Servic",GPC
Statement Date 18/06/2015 to 17/07/2015,Adults and Communities,PAYPAL  ROBIN LEE,19/06/2015,3.25,Other Equipment & Materials - General,GENERAL CONTRACTORS - RESIDENTIAL AND COMMERCIAL,GPC
Statement Date 18/06/2015 to 17/07/2015,Adults and Communities,PAYPAL  ROYALNATION,25/06/2015,23.88,Operational Equipment - DDA,Charitable and Social Service Organizations,GPC
Statement Date 18/06/2015 to 17/07/2015,Adults and Communities,PAYPAL  SAVINGWORLD,30/06/2015,89.94,General Equipment - General,Chemicals and Allied Products Not Elsewhere Classi,GPC
Statement Date 18/06/2015 to 17/07/2015,Adults and Communities,PAYPAL  SHOPFITTING,30/06/2015,99.98,Materials - General,"Sewing, Needlework, Fabric, and Piece Goods Stores",GPC
Statement Date 18/06/2015 to 17/07/2015,Adults and Communities,PAYPAL  VIKINGDIREC,18/06/2015,129.90,General Equipment - General,Chemicals and Allied Products Not Elsewhere Classi,GPC
Statement Date 18/06/2015 to 17/07/2015,Adults and Communities,PAYPAL  VIRGO DISTR,22/06/2015,6.99,Other Equipment & Materials - General,"Grocery Stores, Supermarkets",GPC
Statement Date 18/06/2015 to 17/07/2015,Adults and Communities,PITCHER & PIANO,17/06/2015,9.95,Display/Conservn/Exhibitions - Conservation,"Drinking Places (Alcoholic Beverages)-Bars, Tavern",GPC
Statement Date 18/06/2015 to 17/07/2015,Adults and Communities,PONDEN HOME,15/07/2015,174.60,General Equipment - General,Miscellaneous House Furnishing Specialty Shops,GPC
Statement Date 18/06/2015 to 17/07/2015,Adults and Communities,POST OFFICE COUNTER,15/07/2015,7.70,Fees & Charges - Retail,Postage Stamps,GPC
Statement Date 18/06/2015 to 17/07/2015,Adults and Communities,POST OFFICE COUNTER,08/07/2015,5.65,Other Expenditure - General,Postage Stamps,GPC
Statement Date 18/06/2015 to 17/07/2015,Adults and Communities,POST OFFICE COUNTER,16/07/2015,3.30,Other Expenditure - General,Postage Stamps,GPC
Statement Date 18/06/2015 to 17/07/2015,Adults and Communities,POST OFFICE COUNTER,06/07/2015,9.61,Postal Services - General,Postage Stamps,GPC
Statement Date 18/06/2015 to 17/07/2015,Adults and Communities,POST OFFICE COUNTER,16/07/2015,49.18,Postal Services - General,Postage Stamps,GPC
Statement Date 18/06/2015 to 17/07/2015,Adults and Communities,POUNDLAND LTD 1142,07/07/2015,11.00,Materials - General,Discount Stores,GPC
Statement Date 18/06/2015 to 17/07/2015,Adults and Communities,PREMIER INN44028535,29/06/2015,69.75,Subsistence - General,PREMIER TRAVEL,GPC
Statement Date 18/06/2015 to 17/07/2015,Adults and Communities,PRET A MANGER,10/07/2015,5.35,Other Expenditure - General,"Eating Places, Restaurants",GPC
Statement Date 18/06/2015 to 17/07/2015,Adults and Communities,Proflamps,12/07/2015,123.68,Stationery - General,Miscellaneous House Furnishing Specialty Shops,GPC
Statement Date 18/06/2015 to 17/07/2015,Adults and Communities,RYMAN,09/07/2015,14.98,Stationery - General,"Stationery, Office, and School Supply Stores",GPC
Statement Date 18/06/2015 to 17/07/2015,Adults and Communities,RYMAN,16/07/2015,21.81,Stationery - General,"Stationery, Office, and School Supply Stores",GPC
Statement Date 18/06/2015 to 17/07/2015,Adults and Communities,SAINSBURYS LOCAL,18/06/2015,6.93,Provisions - General,"Grocery Stores, Supermarkets",GPC
Statement Date 18/06/2015 to 17/07/2015,Adults and Communities,SAINSBURYS LOCAL,05/07/2015,9.30,Provisions - General,"Grocery Stores, Supermarkets",GPC
Statement Date 18/06/2015 to 17/07/2015,Adults and Communities,SAINSBURYS LOCAL,10/07/2015,12.30,Provisions - General,"Grocery Stores, Supermarkets",GPC
Statement Date 18/06/2015 to 17/07/2015,Adults and Communities,SAINSBURYS LOCAL,11/07/2015,7.10,Provisions - General,"Grocery Stores, Supermarkets",GPC
Statement Date 18/06/2015 to 17/07/2015,Adults and Communities,SAINSBURYS LOCAL,12/07/2015,13.45,Provisions - General,"Grocery Stores, Supermarkets",GPC
Statement Date 18/06/2015 to 17/07/2015,Adults and Communities,Sainsburys S/mkts,06/07/2015,3.96,Materials - General,"Grocery Stores, Supermarkets",GPC
Statement Date 18/06/2015 to 17/07/2015,Adults and Communities,Sainsburys S/mkts,23/06/2015,2.00,Other Expenditure - General,"Grocery Stores, Supermarkets",GPC
Statement Date 18/06/2015 to 17/07/2015,Adults and Communities,SAPCOTE GARDEN CENTRE LT,08/07/2015,4.99,Grounds Maint-Non Contract - General,"Lawn and Garden Supply Stores, Nurseries",GPC
Statement Date 18/06/2015 to 17/07/2015,Adults and Communities,SCREWFIX,17/06/2015,38.08,Display/Conservn/Exhibitions - Conservation,"Building Materials, Lumber Stores",GPC
Statement Date 18/06/2015 to 17/07/2015,Adults and Communities,SCREWFIX,18/06/2015,39.99,Protective Clothing & Uniforms - General,"Building Materials, Lumber Stores",GPC
Statement Date 18/06/2015 to 17/07/2015,Adults and Communities,SCREWFIX DIRECT,02/07/2015,25.63,R & M of Buildings - General,"Building Materials, Lumber Stores",GPC
Statement Date 18/06/2015 to 17/07/2015,Adults and Communities,SCREWFIX DIRECT LT,23/06/2015,10.82,Aids & Adaptations - Minor Adaptations,"Building Materials, Lumber Stores",GPC
Statement Date 18/06/2015 to 17/07/2015,Adults and Communities,SETON,17/06/2015,23.34,General Equipment - General,Durable Goods Not Elsewhere Classified,GPC
Statement Date 18/06/2015 to 17/07/2015,Adults and Communities,SHEPHARD AND WILSON LTD,17/06/2015,18.33,Display/Conservn/Exhibitions - Conservation,"Automotive Parts, Accessories Stores",GPC
Statement Date 18/06/2015 to 17/07/2015,Adults and Communities,STAPLES UK,23/06/2015,2.50,Stationery - General,"Stationery, Office, and School Supply Stores",GPC
Statement Date 18/06/2015 to 17/07/2015,Adults and Communities,STAUNTON STABLES TEA,15/07/2015,4.16,Other Expenditure - General,"Eating Places, Restaurants",GPC
Statement Date 18/06/2015 to 17/07/2015,Adults and Communities,STAUNTON STABLES TEA,15/07/2015,32.60,Other Expenditure - General,"Eating Places, Restaurants",GPC
Statement Date 18/06/2015 to 17/07/2015,Adults and Communities,SUNNYSIDE GARDEN CENTRE,01/07/2015,6.80,Materials - General,"Florists Supplies, Nursery Stock, and Flowers",GPC
Statement Date 18/06/2015 to 17/07/2015,Adults and Communities,SUNNYSIDE GARDEN CENTRE,07/07/2015,26.91,Materials - General,"Florists Supplies, Nursery Stock, and Flowers",GPC
Statement Date 18/06/2015 to 17/07/2015,Adults and Communities,SUPERDRUG STORES PLC,16/07/2015,14.16,Other Equipment & Materials - General,"Drug Stores, Pharmacies",GPC
Statement Date 18/06/2015 to 17/07/2015,Adults and Communities,SURVEYMONKEYCOM/HELP,12/07/2015,21.67,Publicity/Marketing - General,Continuity/Subscription Merchants,GPC
Statement Date 18/06/2015 to 17/07/2015,Adults and Communities,TALKTALK BUSINESS,09/07/2015,70.00,Communications Equipment - General,Telecommunication Service Including Local and Long,GPC
Statement Date 18/06/2015 to 17/07/2015,Adults and Communities,TESCO DIRECT,01/07/2015,62.50,General Equipment - General,Miscellaneous and Specialty Retail Stores,GPC
Statement Date 18/06/2015 to 17/07/2015,Adults and Communities,TESCO STORES 5182,19/06/2015,123.19,Provisions - General,"Grocery Stores, Supermarkets",GPC
Statement Date 18/06/2015 to 17/07/2015,Adults and Communities,TESCO STORES 5182,22/06/2015,82.93,Provisions - General,"Grocery Stores, Supermarkets",GPC
Statement Date 18/06/2015 to 17/07/2015,Adults and Communities,TESCO STORES 5182,26/06/2015,189.45,Provisions - General,"Grocery Stores, Supermarkets",GPC
Statement Date 18/06/2015 to 17/07/2015,Adults and Communities,TESCO STORES 5182,29/06/2015,195.23,Provisions - General,"Grocery Stores, Supermarkets",GPC
Statement Date 18/06/2015 to 17/07/2015,Adults and Communities,TESCO STORES 5182,29/06/2015,57.99,Provisions - General,"Grocery Stores, Supermarkets",GPC
Statement Date 18/06/2015 to 17/07/2015,Adults and Communities,TESCO STORES 5182,03/07/2015,183.05,Provisions - General,"Grocery Stores, Supermarkets",GPC
Statement Date 18/06/2015 to 17/07/2015,Adults and Communities,TESCO STORES 5182,06/07/2015,144.82,Provisions - General,"Grocery Stores, Supermarkets",GPC
Statement Date 18/06/2015 to 17/07/2015,Adults and Communities,TESCO STORES 5182,10/07/2015,181.33,Provisions - General,"Grocery Stores, Supermarkets",GPC
Statement Date 18/06/2015 to 17/07/2015,Adults and Communities,TESCO STORES 5182,14/07/2015,67.58,Provisions - General,"Grocery Stores, Supermarkets",GPC
Statement Date 18/06/2015 to 17/07/2015,Adults and Communities,TESCO STORES-2044,19/06/2015,8.98,Other Equipment & Materials - General,"Grocery Stores, Supermarkets",GPC
Statement Date 18/06/2015 to 17/07/2015,Adults and Communities,TESCO STORES-2044,14/07/2015,3.60,Other Equipment & Materials - General,"Grocery Stores, Supermarkets",GPC
Statement Date 18/06/2015 to 17/07/2015,Adults and Communities,THE BOOK PEOPLE,24/06/2015,227.87,Books - General,Book Stores,GPC
Statement Date 18/06/2015 to 17/07/2015,Adults and Communities,THE BOOK PEOPLE,07/07/2015,108.86,Books - General,Book Stores,GPC
Statement Date 18/06/2015 to 17/07/2015,Adults and Communities,THE ENGLISH HERITAGE T,08/07/2015,250.00,Subscriptions - General,Tourist Attractions and Exhibits,GPC
Statement Date 18/06/2015 to 17/07/2015,Adults and Communities,THE NATIONAL TRUST,26/06/2015,85.15,Display/Conservn/Exhibitions - Conservation,Charitable and Social Service Organizations,GPC
Statement Date 18/06/2015 to 17/07/2015,Adults and Communities,THE NATIONAL TRUST,03/07/2015,14.75,Other Services - General,"Eating Places, Restaurants",GPC
Statement Date 18/06/2015 to 17/07/2015,Adults and Communities,THE STABLE,17/06/2015,13.80,Display/Conservn/Exhibitions - Conservation,"Eating Places, Restaurants",GPC
Statement Date 18/06/2015 to 17/07/2015,Adults and Communities,THE TRAINLINE.COM,17/06/2015,180.03,Public Transport -  Staff - General,Passenger Railways,GPC
Statement Date 18/06/2015 to 17/07/2015,Adults and Communities,THE WORKS,01/07/2015,142.42,Books - General,Book Stores,GPC
Statement Date 18/06/2015 to 17/07/2015,Adults and Communities,TP COALVILLE,22/06/2015,16.97,Aids & Adaptations - Minor Adaptations,"Building Materials, Lumber Stores",GPC
Statement Date 18/06/2015 to 17/07/2015,Adults and Communities,TRADE UK,17/06/2015,104.60,General Equipment - General,"Building Materials, Lumber Stores",GPC
Statement Date 18/06/2015 to 17/07/2015,Adults and Communities,TVLICENSING.CO.UK,06/07/2015,145.50,IT Equipment - General,"Management, Consulting and Public Relations Servic",GPC
Statement Date 18/06/2015 to 17/07/2015,Adults and Communities,UK CAA GATWICK,09/07/2015,68.00,Other Expenditure - General,Government Services-Not Elsewhere Classified,GPC
Statement Date 18/06/2015 to 17/07/2015,Adults and Communities,UPT EM STAMFORD TRAIN ST,16/06/2015,8.50,Public Transport -  Staff - General,Automobile Parking Lots and Garages,GPC
Statement Date 18/06/2015 to 17/07/2015,Adults and Communities,VIRGINTRAINSEC PBO STN,01/07/2015,106.00,Public Transport -  Staff - General,Passenger Railways,GPC
Statement Date 18/06/2015 to 17/07/2015,Adults and Communities,W M MORRISONS CAFE,26/06/2015,4.68,Subsistence - General,"Eating Places, Restaurants",GPC
Statement Date 18/06/2015 to 17/07/2015,Adults and Communities,W M MORRISONS CAFE,08/07/2015,4.68,Subsistence - General,"Eating Places, Restaurants",GPC
Statement Date 18/06/2015 to 17/07/2015,Adults and Communities,WICKES HINCKLEY,17/06/2015,43.64,R & M of Buildings - General,"Building Materials, Lumber Stores",GPC
Statement Date 18/06/2015 to 17/07/2015,Adults and Communities,WICKES HINCKLEY,01/07/2015,41.60,R & M of Buildings - General,"Building Materials, Lumber Stores",GPC
Statement Date 18/06/2015 to 17/07/2015,Adults and Communities,WILKO RETAIL LIMIT,25/06/2015,9.57,Aids & Adaptations - Minor Adaptations,Household Appliance Stores,GPC
Statement Date 18/06/2015 to 17/07/2015,Adults and Communities,WILKO RETAIL LIMIT,25/06/2015,18.90,General Equipment - General,Household Appliance Stores,GPC
Statement Date 18/06/2015 to 17/07/2015,Adults and Communities,WILKO RETAIL LIMIT,15/07/2015,66.35,General Equipment - General,Household Appliance Stores,GPC
Statement Date 18/06/2015 to 17/07/2015,Adults and Communities,WILKO RETAIL LIMIT,17/06/2015,13.28,Materials - General,Household Appliance Stores,GPC
Statement Date 18/06/2015 to 17/07/2015,Adults and Communities,WILKO RETAIL LIMIT,02/07/2015,31.75,Materials - General,Household Appliance Stores,GPC
Statement Date 18/06/2015 to 17/07/2015,Adults and Communities,WILKO RETAIL LIMIT,06/07/2015,45.85,Materials - General,Household Appliance Stores,GPC
Statement Date 18/06/2015 to 17/07/2015,Adults and Communities,WILKO RETAIL LIMIT,15/07/2015,7.10,Materials - General,Household Appliance Stores,GPC
Statement Date 18/06/2015 to 17/07/2015,Adults and Communities,WILKO RETAIL LIMIT,09/07/2015,4.12,R & M of Buildings - General,Household Appliance Stores,GPC
Statement Date 18/06/2015 to 17/07/2015,Adults and Communities,WILKO RETAIL LIMIT,08/07/2015,17.50,Stationery - General,Household Appliance Stores,GPC
Statement Date 18/06/2015 to 17/07/2015,Adults and Communities,WM MORRISON 054,17/06/2015,120.13,Materials - General,"Grocery Stores, Supermarkets",GPC
Statement Date 18/06/2015 to 17/07/2015,Adults and Communities,WM MORRISON 054,20/06/2015,143.40,Materials - General,"Grocery Stores, Supermarkets",GPC
Statement Date 18/06/2015 to 17/07/2015,Adults and Communities,WM MORRISON 054,25/06/2015,97.21,Materials - General,"Grocery Stores, Supermarkets",GPC
Statement Date 18/06/2015 to 17/07/2015,Adults and Communities,WM MORRISON 054,26/06/2015,93.19,Materials - General,"Grocery Stores, Supermarkets",GPC
Statement Date 18/06/2015 to 17/07/2015,Adults and Communities,WM MORRISON 054,01/07/2015,129.36,Materials - General,"Grocery Stores, Supermarkets",GPC
Statement Date 18/06/2015 to 17/07/2015,Adults and Communities,WM MORRISON 054,02/07/2015,13.50,Materials - General,"Grocery Stores, Supermarkets",GPC
Statement Date 18/06/2015 to 17/07/2015,Adults and Communities,WM MORRISON 054,03/07/2015,21.94,Materials - General,"Grocery Stores, Supermarkets",GPC
Statement Date 18/06/2015 to 17/07/2015,Adults and Communities,WM MORRISON 054,04/07/2015,159.56,Materials - General,"Grocery Stores, Supermarkets",GPC
Statement Date 18/06/2015 to 17/07/2015,Adults and Communities,WM MORRISON 054,08/07/2015,156.68,Materials - General,"Grocery Stores, Supermarkets",GPC
Statement Date 18/06/2015 to 17/07/2015,Adults and Communities,WM MORRISON 054,15/07/2015,140.50,Materials - General,"Grocery Stores, Supermarkets",GPC
Statement Date 18/06/2015 to 17/07/2015,Adults and Communities,WM MORRISONS,23/06/2015,8.33,General Equipment - General,"Grocery Stores, Supermarkets",GPC
Statement Date 18/06/2015 to 17/07/2015,Adults and Communities,WM MORRISONS,11/07/2015,48.85,Provisions - General,"Grocery Stores, Supermarkets",GPC
Statement Date 18/06/2015 to 17/07/2015,Adults and Communities,WPCHRG.COM,03/07/2015,63.51,Communications Equipment - General,Computer Network/Information Services,GPC
Statement Date 18/06/2015 to 17/07/2015,Adults and Communities,WWW.CROMWELL.CO.UK,02/07/2015,42.47,Display/Conservn/Exhibitions - Conservation,Hardware Equipment and Supplies,GPC
Statement Date 18/06/2015 to 17/07/2015,Adults and Communities,WWW.DVLA.GOV.UK,23/06/2015,227.50,Road Licences - General,Government Services-Not Elsewhere Classified,GPC
Statement Date 18/06/2015 to 17/07/2015,Adults and Communities,WWW.DVLA.GOV.UK,25/06/2015,227.50,Road Licences - General,Government Services-Not Elsewhere Classified,GPC
Statement Date 18/06/2015 to 17/07/2015,Adults and Communities,WWW.FILMBANK.CO.UK,03/07/2015,114.33,Materials - General,Motion Picture and Video Tape Production,GPC
Statement Date 18/06/2015 to 17/07/2015,Adults and Communities,WWW.FILMBANK.CO.UK,08/07/2015,124.54,Materials - General,Motion Picture and Video Tape Production,GPC
Statement Date 18/06/2015 to 17/07/2015,Adults and Communities,WWW.INTERSERVE.COM,15/07/2015,58.50,Display/Conservn/Exhibitions - Exhibitions,Caterers,GPC
Statement Date 18/06/2015 to 17/07/2015,Adults and Communities,WWW.ONESTOPSTAMPS.CO.U,06/07/2015,24.80,Other Expenditure - General,Stamp and Coin Stores-Philatelic and Numismatic Su,GPC
Statement Date 18/06/2015 to 17/07/2015,Adults and Communities,WWW.PPLUK.COM,03/07/2015,432.88,Subscriptions - General,Membership Organizations-Not Elsewhere Classified,GPC
Statement Date 18/06/2015 to 17/07/2015,Adults and Communities,WWW.ROMPALTD.COM,25/06/2015,390.00,General Equipment - General,Miscellaneous and Specialty Retail Stores,GPC
Statement Date 18/06/2015 to 17/07/2015,Adults and Communities,WWW.SOFMILITARY.CO.UK,18/06/2015,393.93,Operational Equipment - General,Miscellaneous and Specialty Retail Stores,GPC
Statement Date 18/06/2015 to 17/07/2015,Adults and Communities,WWW.UKPOS.COM,26/06/2015,104.46,Stationery - General,"Stationery, Office, and School Supply Stores",GPC
Statement Date 18/06/2015 to 17/07/2015,Adults and Communities,WWW.ZEN.CO.UK,29/06/2015,34.76,Telephones - General,Computer Network/Information Services,GPC
Statement Date 18/06/2015 to 17/07/2015,C&YPS-Non Delegated,99P STORES LTD,27/06/2015,2.97,Other Equipment & Materials - General,"Grocery Stores, Supermarkets",GPC
Statement Date 18/06/2015 to 17/07/2015,C&YPS-Non Delegated,ADHD SOLUTIONS CIC,08/07/2015,30.00,Subscriptions - General,Charitable and Social Service Organizations,GPC
Statement Date 18/06/2015 to 17/07/2015,C&YPS-Non Delegated,ALDI,08/07/2015,10.59,Materials - General,"Grocery Stores, Supermarkets",GPC
Statement Date 18/06/2015 to 17/07/2015,C&YPS-Non Delegated,ALDI,26/06/2015,19.97,Provisions - General,"Grocery Stores, Supermarkets",GPC
Statement Date 18/06/2015 to 17/07/2015,C&YPS-Non Delegated,ALDI,03/07/2015,29.31,Provisions - General,"Grocery Stores, Supermarkets",GPC
Statement Date 18/06/2015 to 17/07/2015,C&YPS-Non Delegated,Amazon Svcs Europe SAR,17/06/2015,59.88,Books - General,Book Stores,GPC
Statement Date 18/06/2015 to 17/07/2015,C&YPS-Non Delegated,Amazon Svcs Europe SAR,19/06/2015,35.88,Books - General,Book Stores,GPC
Statement Date 18/06/2015 to 17/07/2015,C&YPS-Non Delegated,Amazon Svcs Europe SAR,26/06/2015,5.58,Books - General,Book Stores,GPC
Statement Date 18/06/2015 to 17/07/2015,C&YPS-Non Delegated,Amazon Svcs Europe SAR,13/07/2015,45.95,Books - General,Book Stores,GPC
Statement Date 18/06/2015 to 17/07/2015,C&YPS-Non Delegated,Amazon Svcs Europe SAR,23/06/2015,111.28,IT Equipment - General,Book Stores,GPC
Statement Date 18/06/2015 to 17/07/2015,C&YPS-Non Delegated,Amazon Svcs Europe SAR,01/07/2015,59.99,IT Equipment - Purchase - Hardware,Book Stores,GPC
Statement Date 18/06/2015 to 17/07/2015,C&YPS-Non Delegated,Amazon Svcs Europe SAR,24/06/2015,19.98,Other Equipment & Materials - General,Book Stores,GPC
Statement Date 18/06/2015 to 17/07/2015,C&YPS-Non Delegated,Amazon Svcs Europe SAR,02/07/2015,18.98,Other Equipment & Materials - General,Book Stores,GPC
Statement Date 18/06/2015 to 17/07/2015,C&YPS-Non Delegated,Amazon Svcs Europe SAR,18/06/2015,39.98,Other Expenditure - General,Book Stores,GPC
Statement Date 18/06/2015 to 17/07/2015,C&YPS-Non Delegated,Amazon Svcs Europe SAR,16/07/2015,11.07,Other Expenditure - General,Book Stores,GPC
Statement Date 18/06/2015 to 17/07/2015,C&YPS-Non Delegated,Amazon Svcs Europe SAR,08/07/2015,85.80,Stationery - General,Book Stores,GPC
Statement Date 18/06/2015 to 17/07/2015,C&YPS-Non Delegated,Amazon UK Marketplace,20/06/2015,27.18,Books - General,Book Stores,GPC
Statement Date 18/06/2015 to 17/07/2015,C&YPS-Non Delegated,Amazon UK Marketplace,19/06/2015,3.98,Materials - General,Miscellaneous and Specialty Retail Stores,GPC
Statement Date 18/06/2015 to 17/07/2015,C&YPS-Non Delegated,Amazon UK Marketplace,19/06/2015,24.58,Materials - General,Miscellaneous and Specialty Retail Stores,GPC
Statement Date 18/06/2015 to 17/07/2015,C&YPS-Non Delegated,Amazon UK Marketplace,20/06/2015,10.62,Materials - General,Miscellaneous and Specialty Retail Stores,GPC
Statement Date 18/06/2015 to 17/07/2015,C&YPS-Non Delegated,Amazon UK Marketplace,22/06/2015,12.99,Other Equipment & Materials - General,Book Stores,GPC
Statement Date 18/06/2015 to 17/07/2015,C&YPS-Non Delegated,Amazon UK Marketplace,25/06/2015,16.98,Other Equipment & Materials - General,Miscellaneous and Specialty Retail Stores,GPC
Statement Date 18/06/2015 to 17/07/2015,C&YPS-Non Delegated,Amazon UK Marketplace,25/06/2015,92.97,Other Equipment & Materials - General,Miscellaneous and Specialty Retail Stores,GPC
Statement Date 18/06/2015 to 17/07/2015,C&YPS-Non Delegated,Amazon UK Marketplace,29/06/2015,15.70,Other Equipment & Materials - General,Book Stores,GPC
Statement Date 18/06/2015 to 17/07/2015,C&YPS-Non Delegated,Amazon UK Marketplace,30/06/2015,9.78,Other Equipment & Materials - General,Miscellaneous and Specialty Retail Stores,GPC
Statement Date 18/06/2015 to 17/07/2015,C&YPS-Non Delegated,Amazon UK Marketplace,07/07/2015,23.99,Other Equipment & Materials - General,Miscellaneous and Specialty Retail Stores,GPC
Statement Date 18/06/2015 to 17/07/2015,C&YPS-Non Delegated,Amazon UK Marketplace,27/06/2015,8.16,Stationery - General,Miscellaneous and Specialty Retail Stores,GPC
Statement Date 18/06/2015 to 17/07/2015,C&YPS-Non Delegated,Amazon UK Marketplace,08/07/2015,19.47,Stationery - General,Book Stores,GPC
Statement Date 18/06/2015 to 17/07/2015,C&YPS-Non Delegated,Amazon UK Retail,30/06/2015,79.15,Materials - General,Direct Marketers - Other,GPC
Statement Date 18/06/2015 to 17/07/2015,C&YPS-Non Delegated,Amazon UK Retail,25/06/2015,37.16,Other Equipment & Materials - General,Direct Marketers - Other,GPC
Statement Date 18/06/2015 to 17/07/2015,C&YPS-Non Delegated,Amazon UK Retail,26/06/2015,37.16,Other Equipment & Materials - General,Direct Marketers - Other,GPC
Statement Date 18/06/2015 to 17/07/2015,C&YPS-Non Delegated,Amazon UK Retail,26/06/2015,11.64,Other Equipment & Materials - General,Direct Marketers - Other,GPC
Statement Date 18/06/2015 to 17/07/2015,C&YPS-Non Delegated,Amazon UK Retail,08/07/2015,8.11,Other Equipment & Materials - General,Direct Marketers - Other,GPC
Statement Date 18/06/2015 to 17/07/2015,C&YPS-Non Delegated,Amazon UK Retail,19/06/2015,28.74,Other Expenditure - General,Direct Marketers - Other,GPC
Statement Date 18/06/2015 to 17/07/2015,C&YPS-Non Delegated,Amazon UK Retail,07/07/2015,136.59,Stationery - General,Direct Marketers - Other,GPC
Statement Date 18/06/2015 to 17/07/2015,C&YPS-Non Delegated,AMFBOWLING.CO.UK,08/07/2015,40.40,Public Transport -  Staff - General,"Membership Clubs (Sports, Recreation, Athletic), C",GPC
Statement Date 18/06/2015 to 17/07/2015,C&YPS-Non Delegated,AMZ PhysioRoomUK,19/06/2015,43.43,Communications Equipment - General,Computer Network/Information Services,GPC
Statement Date 18/06/2015 to 17/07/2015,C&YPS-Non Delegated,ANA WIZ LTD,24/06/2015,-29.95,Materials - General,Miscellaneous and Specialty Retail Stores,GPC
Statement Date 18/06/2015 to 17/07/2015,C&YPS-Non Delegated,ARGOS LTD,25/06/2015,18.04,Materials - General,Discount Stores,GPC
Statement Date 18/06/2015 to 17/07/2015,C&YPS-Non Delegated,ARGOS LTD,25/06/2015,227.44,Materials - General,Discount Stores,GPC
Statement Date 18/06/2015 to 17/07/2015,C&YPS-Non Delegated,ARGOS LTD,10/07/2015,33.24,Operational Equipment - General,Discount Stores,GPC
Statement Date 18/06/2015 to 17/07/2015,C&YPS-Non Delegated,ARGOS LTD,02/07/2015,71.24,Provisions - General,Discount Stores,GPC
Statement Date 18/06/2015 to 17/07/2015,C&YPS-Non Delegated,ARGOS RETAIL GROUP,26/06/2015,234.94,Materials - General,Discount Stores,GPC
Statement Date 18/06/2015 to 17/07/2015,C&YPS-Non Delegated,ARGOS RETAIL GROUP,03/07/2015,108.94,Other Equipment & Materials - General,Discount Stores,GPC
Statement Date 18/06/2015 to 17/07/2015,C&YPS-Non Delegated,ARGOS RETAIL GROUP,18/06/2015,159.98,Other Transfer Payments - Section 24,Discount Stores,GPC
Statement Date 18/06/2015 to 17/07/2015,C&YPS-Non Delegated,AROSA CARAVAN PARK,13/07/2015,112.00,Other Equipment & Materials - General,Trailer Parks and Campgrounds,GPC
Statement Date 18/06/2015 to 17/07/2015,C&YPS-Non Delegated,ARRIVA PASSENGER S,18/06/2015,55.00,Other Transfer Payments - Section 24,Automotive Repair Shops (non-dealer),GPC
Statement Date 18/06/2015 to 17/07/2015,C&YPS-Non Delegated,ASDA STORES,17/06/2015,40.76,Other Expenditure - General,"Grocery Stores, Supermarkets",GPC
Statement Date 18/06/2015 to 17/07/2015,C&YPS-Non Delegated,ASDA STORES,18/06/2015,50.66,Other Expenditure - General,"Grocery Stores, Supermarkets",GPC
Statement Date 18/06/2015 to 17/07/2015,C&YPS-Non Delegated,ASDA STORES,15/07/2015,37.00,Other Expenditure - General,"Grocery Stores, Supermarkets",GPC
Statement Date 18/06/2015 to 17/07/2015,C&YPS-Non Delegated,ASDA STORES 4477,29/06/2015,18.59,Other Equipment & Materials - General,"Grocery Stores, Supermarkets",GPC
Statement Date 18/06/2015 to 17/07/2015,C&YPS-Non Delegated,ASDA STORES 4533,26/06/2015,68.75,Other Equipment & Materials - General,"Grocery Stores, Supermarkets",GPC
Statement Date 18/06/2015 to 17/07/2015,C&YPS-Non Delegated,ASDA SUPERSTORE,22/06/2015,13.74,Materials - General,"Grocery Stores, Supermarkets",GPC
Statement Date 18/06/2015 to 17/07/2015,C&YPS-Non Delegated,ASDA SUPERSTORE,06/07/2015,6.29,Materials - General,"Grocery Stores, Supermarkets",GPC
Statement Date 18/06/2015 to 17/07/2015,C&YPS-Non Delegated,ASDA SUPERSTORE,03/07/2015,2.00,Other Equipment & Materials - General,"Grocery Stores, Supermarkets",GPC
Statement Date 18/06/2015 to 17/07/2015,C&YPS-Non Delegated,ASDA SUPERSTORE,02/07/2015,125.00,Personal Needs of Clients - General,"Grocery Stores, Supermarkets",GPC
Statement Date 18/06/2015 to 17/07/2015,C&YPS-Non Delegated,ASDA SUPERSTORE,22/06/2015,187.18,Provisions - General,"Grocery Stores, Supermarkets",GPC
Statement Date 18/06/2015 to 17/07/2015,C&YPS-Non Delegated,ASDA SUPERSTORE,22/06/2015,138.66,Provisions - General,"Grocery Stores, Supermarkets",GPC
Statement Date 18/06/2015 to 17/07/2015,C&YPS-Non Delegated,ASDA SUPERSTORE,26/06/2015,12.00,Provisions - General,"Grocery Stores, Supermarkets",GPC
Statement Date 18/06/2015 to 17/07/2015,C&YPS-Non Delegated,ASDA SUPERSTORE,29/06/2015,217.19,Provisions - General,"Grocery Stores, Supermarkets",GPC
Statement Date 18/06/2015 to 17/07/2015,C&YPS-Non Delegated,ASDA SUPERSTORE,30/06/2015,216.16,Provisions - General,"Grocery Stores, Supermarkets",GPC
Statement Date 18/06/2015 to 17/07/2015,C&YPS-Non Delegated,ASDA SUPERSTORE,03/07/2015,14.00,Provisions - General,"Grocery Stores, Supermarkets",GPC
Statement Date 18/06/2015 to 17/07/2015,C&YPS-Non Delegated,ASDA SUPERSTORE,06/07/2015,164.03,Provisions - General,"Grocery Stores, Supermarkets",GPC
Statement Date 18/06/2015 to 17/07/2015,C&YPS-Non Delegated,ASDA SUPERSTORE,06/07/2015,132.88,Provisions - General,"Grocery Stores, Supermarkets",GPC
Statement Date 18/06/2015 to 17/07/2015,C&YPS-Non Delegated,ASDA SUPERSTORE,13/07/2015,160.96,Provisions - General,"Grocery Stores, Supermarkets",GPC
Statement Date 18/06/2015 to 17/07/2015,C&YPS-Non Delegated,ATS EUROMASTER,09/07/2015,178.98,Operational Equipment - General,Automotive Tire Stores,GPC
Statement Date 18/06/2015 to 17/07/2015,C&YPS-Non Delegated,B & Q,16/07/2015,41.24,Other Equipment & Materials - General,"Building Materials, Lumber Stores",GPC
Statement Date 18/06/2015 to 17/07/2015,C&YPS-Non Delegated,B&M RETAIL LTD,30/06/2015,3.88,General Equipment - General,Discount Stores,GPC
Statement Date 18/06/2015 to 17/07/2015,C&YPS-Non Delegated,B&M RETAIL LTD,30/06/2015,200.00,General Equipment - General,Discount Stores,GPC
Statement Date 18/06/2015 to 17/07/2015,C&YPS-Non Delegated,B&M RETAIL LTD,01/07/2015,109.92,General Equipment - General,Discount Stores,GPC
Statement Date 18/06/2015 to 17/07/2015,C&YPS-Non Delegated,B&M RETAIL LTD,19/06/2015,71.05,Materials - General,Discount Stores,GPC
Statement Date 18/06/2015 to 17/07/2015,C&YPS-Non Delegated,B&Q - LONGHBOROUGH,08/07/2015,7.50,Other Equipment & Materials - General,Caterers,GPC
Statement Date 18/06/2015 to 17/07/2015,C&YPS-Non Delegated,BGRP LTD,01/07/2015,263.93,Other Equipment & Materials - General,"Furniture, Home Furnishings and Equipment Stores,",GPC
Statement Date 18/06/2015 to 17/07/2015,C&YPS-Non Delegated,BOLTON METROPOLITAN BO,25/06/2015,10.15,Other Expenditure - General,Government Services-Not Elsewhere Classified,GPC
Statement Date 18/06/2015 to 17/07/2015,C&YPS-Non Delegated,BOOTS 6500,03/07/2015,9.57,Other Equipment & Materials - General,"Drug Stores, Pharmacies",GPC
Statement Date 18/06/2015 to 17/07/2015,C&YPS-Non Delegated,BOOTS.COM,07/07/2015,33.49,Other Transfer Payments - Sector 17- Other,"Drug Stores, Pharmacies",GPC
Statement Date 18/06/2015 to 17/07/2015,C&YPS-Non Delegated,BRITISH HEART FOUNDATI,25/06/2015,85.00,Other Services - General,Charitable and Social Service Organizations,GPC
Statement Date 18/06/2015 to 17/07/2015,C&YPS-Non Delegated,BRU,14/07/2015,5.65,Subsistence - General,"Eating Places, Restaurants",GPC
Statement Date 18/06/2015 to 17/07/2015,C&YPS-Non Delegated,BT BILL PAYMENT 1,03/07/2015,72.00,Telephones - General,Telecommunication Equipment Including Telephone Sa,GPC
Statement Date 18/06/2015 to 17/07/2015,C&YPS-Non Delegated,BT BILL PAYMENT 1,03/07/2015,60.00,Telephones - General,Telecommunication Equipment Including Telephone Sa,GPC
Statement Date 18/06/2015 to 17/07/2015,C&YPS-Non Delegated,BT BILL PAYMENT 1,03/07/2015,69.89,Telephones - General,Telecommunication Equipment Including Telephone Sa,GPC
Statement Date 18/06/2015 to 17/07/2015,C&YPS-Non Delegated,BT BILL PAYMENT 1,06/07/2015,123.00,Telephones - General,Telecommunication Equipment Including Telephone Sa,GPC
Statement Date 18/06/2015 to 17/07/2015,C&YPS-Non Delegated,BT BILL PAYMENT 1,16/07/2015,49.89,Telephones - General,Telecommunication Equipment Including Telephone Sa,GPC
Statement Date 18/06/2015 to 17/07/2015,C&YPS-Non Delegated,BT BILL PAYMENT 2,18/06/2015,71.97,R & M of Buildings - General,Telecommunication Equipment Including Telephone Sa,GPC
Statement Date 18/06/2015 to 17/07/2015,C&YPS-Non Delegated,BT BILL PAYMENT 2,09/07/2015,70.74,R & M of Buildings - General,Telecommunication Equipment Including Telephone Sa,GPC
Statement Date 18/06/2015 to 17/07/2015,C&YPS-Non Delegated,BT BILL PAYMENT 2,23/06/2015,60.00,Telephones - General,Telecommunication Equipment Including Telephone Sa,GPC
Statement Date 18/06/2015 to 17/07/2015,C&YPS-Non Delegated,BT BILL PAYMENT 2,24/06/2015,0.03,Telephones - General,Telecommunication Equipment Including Telephone Sa,GPC
Statement Date 18/06/2015 to 17/07/2015,C&YPS-Non Delegated,BT PAY BY PHONE,03/07/2015,71.97,Telephones - General,Telecommunication Service Including Local and Long,GPC
Statement Date 18/06/2015 to 17/07/2015,C&YPS-Non Delegated,BT PAY BY PHONE,03/07/2015,49.94,Telephones - General,Telecommunication Service Including Local and Long,GPC
Statement Date 18/06/2015 to 17/07/2015,C&YPS-Non Delegated,BT PAY BY PHONE,06/07/2015,91.97,Telephones - General,Telecommunication Service Including Local and Long,GPC
Statement Date 18/06/2015 to 17/07/2015,C&YPS-Non Delegated,CAFFE NERO,08/07/2015,8.55,Other Expenditure - General,"Eating Places, Restaurants",GPC
Statement Date 18/06/2015 to 17/07/2015,C&YPS-Non Delegated,CAFFE NERO,23/06/2015,7.35,Subsistence - General,"Eating Places, Restaurants",GPC
Statement Date 18/06/2015 to 17/07/2015,C&YPS-Non Delegated,CENTRAL ENG COOP,30/06/2015,65.00,Client/Volunteers - General,Department Stores,GPC
Statement Date 18/06/2015 to 17/07/2015,C&YPS-Non Delegated,CENTRAL ENG COOP,25/06/2015,3.63,Materials - General,Department Stores,GPC
Statement Date 18/06/2015 to 17/07/2015,C&YPS-Non Delegated,CENTRAL ENG COOP,13/07/2015,65.00,Materials - General,Department Stores,GPC
Statement Date 18/06/2015 to 17/07/2015,C&YPS-Non Delegated,CENTRAL ENG COOP,22/06/2015,4.01,Other Equipment & Materials - General,Department Stores,GPC
Statement Date 18/06/2015 to 17/07/2015,C&YPS-Non Delegated,CENTRAL ENG COOP,24/06/2015,19.32,Other Equipment & Materials - General,Department Stores,GPC
Statement Date 18/06/2015 to 17/07/2015,C&YPS-Non Delegated,CENTRAL ENG COOP,25/06/2015,11.76,Other Equipment & Materials - General,Department Stores,GPC
Statement Date 18/06/2015 to 17/07/2015,C&YPS-Non Delegated,CENTRAL ENG COOP,27/06/2015,10.10,Other Equipment & Materials - General,Department Stores,GPC
Statement Date 18/06/2015 to 17/07/2015,C&YPS-Non Delegated,CENTRAL ENG COOP,29/06/2015,5.69,Other Equipment & Materials - General,Department Stores,GPC
Statement Date 18/06/2015 to 17/07/2015,C&YPS-Non Delegated,CENTRAL ENG COOP,29/06/2015,4.90,Other Equipment & Materials - General,Department Stores,GPC
Statement Date 18/06/2015 to 17/07/2015,C&YPS-Non Delegated,CENTRAL ENG COOP,30/06/2015,6.25,Other Equipment & Materials - General,Department Stores,GPC
Statement Date 18/06/2015 to 17/07/2015,C&YPS-Non Delegated,CENTRAL ENG COOP,01/07/2015,11.03,Other Equipment & Materials - General,Department Stores,GPC
Statement Date 18/06/2015 to 17/07/2015,C&YPS-Non Delegated,CENTRAL ENG COOP,02/07/2015,12.10,Other Equipment & Materials - General,Department Stores,GPC
Statement Date 18/06/2015 to 17/07/2015,C&YPS-Non Delegated,CENTRAL ENG COOP,06/07/2015,2.80,Other Equipment & Materials - General,Department Stores,GPC
Statement Date 18/06/2015 to 17/07/2015,C&YPS-Non Delegated,CENTRAL ENG COOP,24/06/2015,6.69,Other Expenditure - General,Department Stores,GPC
Statement Date 18/06/2015 to 17/07/2015,C&YPS-Non Delegated,CENTRAL ENG COOP,30/06/2015,4.88,Other Expenditure - General,Department Stores,GPC
Statement Date 18/06/2015 to 17/07/2015,C&YPS-Non Delegated,CENTRAL ENG COOP,24/06/2015,2.59,Subsistence - General,Department Stores,GPC
Statement Date 18/06/2015 to 17/07/2015,C&YPS-Non Delegated,CONKERS DISCOVERY,03/07/2015,17.70,Other Equipment & Materials - General,RECREATION SERVICES--NOT ELSEWHERE CLASSIFIED,GPC
Statement Date 18/06/2015 to 17/07/2015,C&YPS-Non Delegated,COSTA COFFEE,23/06/2015,5.70,Other Equipment & Materials - General,"Eating Places, Restaurants",GPC
Statement Date 18/06/2015 to 17/07/2015,C&YPS-Non Delegated,COSTA COFFEE,14/07/2015,11.40,Other Expenditure - General,"Miscellaneous Food Stores-Convenience Stores, Mark",GPC
Statement Date 18/06/2015 to 17/07/2015,C&YPS-Non Delegated,COSTA COFFEE,25/06/2015,3.50,Subsistence - General,"Eating Places, Restaurants",GPC
Statement Date 18/06/2015 to 17/07/2015,C&YPS-Non Delegated,COULSDON MANOR,25/06/2015,88.00,Subsistence - General,"Lodging-Hotels, Motels, Resorts",GPC
Statement Date 18/06/2015 to 17/07/2015,C&YPS-Non Delegated,COULSDON MANOR,25/06/2015,176.00,Subsistence - General,"Lodging-Hotels, Motels, Resorts",GPC
Statement Date 18/06/2015 to 17/07/2015,C&YPS-Non Delegated,CROOTS FARM SHOP,07/07/2015,8.09,Provisions - General,"Miscellaneous Food Stores-Convenience Stores, Mark",GPC
Statement Date 18/06/2015 to 17/07/2015,C&YPS-Non Delegated,CURRYS SUPERSTORE,09/07/2015,75.00,Other Expenditure - General,"RADIO, TELEVISION, AND STEREO STORES (ELECTRONIC STORES)",GPC
Statement Date 18/06/2015 to 17/07/2015,C&YPS-Non Delegated,DOMINO'S,06/07/2015,31.00,Other Equipment & Materials - General,Fast-Food Restaurants (Quick Payment Service Pilot,GPC
Statement Date 18/06/2015 to 17/07/2015,C&YPS-Non Delegated,DOMINOS PIZZA WIGS,25/06/2015,33.98,Other Equipment & Materials - General,"Eating Places, Restaurants",GPC
Statement Date 18/06/2015 to 17/07/2015,C&YPS-Non Delegated,EAST MIDLANDS TRAI,22/06/2015,16.70,Casual/Essential - General,Passenger Railways,GPC
Statement Date 18/06/2015 to 17/07/2015,C&YPS-Non Delegated,EAST MIDLANDS TRAI,16/07/2015,54.50,Casual/Essential - General,Passenger Railways,GPC
Statement Date 18/06/2015 to 17/07/2015,C&YPS-Non Delegated,EASTMIDLANDSTRAINS,23/06/2015,133.00,Casual/Essential - General,Passenger Railways,GPC
Statement Date 18/06/2015 to 17/07/2015,C&YPS-Non Delegated,EASTMIDLANDSTRAINS,29/06/2015,89.10,Other Expenditure - General,Passenger Railways,GPC
Statement Date 18/06/2015 to 17/07/2015,C&YPS-Non Delegated,ELMS,17/06/2015,42.00,Subsistence - General,"Drinking Places (Alcoholic Beverages)-Bars, Tavern",GPC
Statement Date 18/06/2015 to 17/07/2015,C&YPS-Non Delegated,ENDERBY LEISURE CE,15/07/2015,175.00,Public Transport -  Staff - General,"Membership Clubs (Sports, Recreation, Athletic), C",GPC
Statement Date 18/06/2015 to 17/07/2015,C&YPS-Non Delegated,FOREIGN EXCHANGE FEE,19/06/2015,0.41,Other Transfer Payments - Section 23 Grants,Misc-Unknown,GPC
Statement Date 18/06/2015 to 17/07/2015,C&YPS-Non Delegated,GO OUTDOORS LTD,17/06/2015,74.25,Other Equipment & Materials - General,"Sports Apparel, Riding Apparel Stores",GPC
Statement Date 18/06/2015 to 17/07/2015,C&YPS-Non Delegated,GO OUTDOORS LTD,20/06/2015,36.77,Other Equipment & Materials - General,"Sports Apparel, Riding Apparel Stores",GPC
Statement Date 18/06/2015 to 17/07/2015,C&YPS-Non Delegated,GOOSEBERRY BUSH,06/07/2015,284.05,Other Transfer Payments - Section 23 Grants,Child Care Services,GPC
Statement Date 18/06/2015 to 17/07/2015,C&YPS-Non Delegated,H&M,08/07/2015,19.98,Personal Needs of Clients - Clothing,Men's And Women's Clothing Stores,GPC
Statement Date 18/06/2015 to 17/07/2015,C&YPS-Non Delegated,HALFORDS 0977,02/07/2015,53.94,Other Equipment & Materials - General,Bicycle Shops-Sales and Service,GPC
Statement Date 18/06/2015 to 17/07/2015,C&YPS-Non Delegated,Harborough Leisure,30/06/2015,163.00,Other Transfer Payments - Sector 17- Other,RECREATION SERVICES--NOT ELSEWHERE CLASSIFIED,GPC
Statement Date 18/06/2015 to 17/07/2015,C&YPS-Non Delegated,HOC CRS,08/07/2015,14.90,Other Expenditure - General,"Eating Places, Restaurants",GPC
Statement Date 18/06/2015 to 17/07/2015,C&YPS-Non Delegated,HOME BARGAINS,02/07/2015,9.80,Other Equipment & Materials - General,Hardware Stores,GPC
Statement Date 18/06/2015 to 17/07/2015,C&YPS-Non Delegated,HOME BARGAINS,10/07/2015,16.96,Other Equipment & Materials - General,Hardware Stores,GPC
Statement Date 18/06/2015 to 17/07/2015,C&YPS-Non Delegated,HSE-CIVIL REGISTRATION,18/06/2015,15.08,Other Transfer Payments - Section 23 Grants,Government Services-Not Elsewhere Classified,GPC
Statement Date 18/06/2015 to 17/07/2015,C&YPS-Non Delegated,HUNTERS PROPERTY LETTI,29/06/2015,500.00,Other Transfer Payments - Section 23 Grants,Professional Services-Not Elsewhere Classified,GPC
Statement Date 18/06/2015 to 17/07/2015,C&YPS-Non Delegated,HUNTERS PROPERTY LETTI,30/06/2015,150.00,Other Transfer Payments - Section 23 Grants,Professional Services-Not Elsewhere Classified,GPC
Statement Date 18/06/2015 to 17/07/2015,C&YPS-Non Delegated,INSURE GOLF LTD,15/07/2015,6.00,Other Equipment & Materials - General,Golf Courses-Public,GPC
Statement Date 18/06/2015 to 17/07/2015,C&YPS-Non Delegated,KEATS GREEN HOTEL,14/07/2015,73.00,Public Transport -  Staff - General,"Lodging-Hotels, Motels, Resorts",GPC
Statement Date 18/06/2015 to 17/07/2015,C&YPS-Non Delegated,KFC - COALVILLE,26/06/2015,6.86,Other Expenditure - General,Fast-Food Restaurants (Quick Payment Service Pilot,GPC
Statement Date 18/06/2015 to 17/07/2015,C&YPS-Non Delegated,KING RICHARD3 VC,24/06/2015,56.00,Other Expenditure - General,Government Services-Not Elsewhere Classified,GPC
Statement Date 18/06/2015 to 17/07/2015,C&YPS-Non Delegated,KIRBY & WEST,07/07/2015,9.23,Provisions - General,Dairy Products Stores,GPC
Statement Date 18/06/2015 to 17/07/2015,C&YPS-Non Delegated,LCC CATERING SERVICES,22/06/2015,9.21,Other Expenditure - General,Government Services-Not Elsewhere Classified,GPC
Statement Date 18/06/2015 to 17/07/2015,C&YPS-Non Delegated,LCC CATERING SERVICES,22/06/2015,10.15,Subsistence - General,Government Services-Not Elsewhere Classified,GPC
Statement Date 18/06/2015 to 17/07/2015,C&YPS-Non Delegated,LEIC CITY COUNCIL,16/06/2015,13.00,Other Expenditure - General,Government Services-Not Elsewhere Classified,GPC
Statement Date 18/06/2015 to 17/07/2015,C&YPS-Non Delegated,LEIC CITY COUNCIL,25/06/2015,13.00,Other Expenditure - General,Government Services-Not Elsewhere Classified,GPC
Statement Date 18/06/2015 to 17/07/2015,C&YPS-Non Delegated,LEIC CITY COUNCIL,26/06/2015,23.00,Other Expenditure - General,Government Services-Not Elsewhere Classified,GPC
Statement Date 18/06/2015 to 17/07/2015,C&YPS-Non Delegated,LEIC CITY COUNCIL,02/07/2015,23.00,Other Expenditure - General,Government Services-Not Elsewhere Classified,GPC
Statement Date 18/06/2015 to 17/07/2015,C&YPS-Non Delegated,LEIC CITY COUNCIL,03/07/2015,-6.00,Other Expenditure - General,Government Services-Not Elsewhere Classified,GPC
Statement Date 18/06/2015 to 17/07/2015,C&YPS-Non Delegated,LEIC CITY COUNCIL,07/07/2015,13.00,Other Expenditure - General,Government Services-Not Elsewhere Classified,GPC
Statement Date 18/06/2015 to 17/07/2015,C&YPS-Non Delegated,LEIC CITY COUNCIL,22/06/2015,-20.00,Other Transfer Payments - Section 23 Grants,Government Services-Not Elsewhere Classified,GPC
Statement Date 18/06/2015 to 17/07/2015,C&YPS-Non Delegated,LEIC CITY COUNCIL,22/06/2015,23.00,Other Transfer Payments - Section 23 Grants,Government Services-Not Elsewhere Classified,GPC
Statement Date 18/06/2015 to 17/07/2015,C&YPS-Non Delegated,LEIC CITY COUNCIL,30/06/2015,23.00,Other Transfer Payments - Section 23 Grants,Government Services-Not Elsewhere Classified,GPC
Statement Date 18/06/2015 to 17/07/2015,C&YPS-Non Delegated,LEIC CITY COUNCIL,02/07/2015,13.00,Other Transfer Payments - Section 23 Grants,Government Services-Not Elsewhere Classified,GPC
Statement Date 18/06/2015 to 17/07/2015,C&YPS-Non Delegated,LEIC CITY COUNCIL,08/07/2015,13.00,Other Transfer Payments - Section 23 Grants,Government Services-Not Elsewhere Classified,GPC
Statement Date 18/06/2015 to 17/07/2015,C&YPS-Non Delegated,LEIC CITY COUNCIL,13/07/2015,23.00,Other Transfer Payments - Section 23 Grants,Government Services-Not Elsewhere Classified,GPC
Statement Date 18/06/2015 to 17/07/2015,C&YPS-Non Delegated,LEIC CITY COUNCIL,13/07/2015,23.00,Other Transfer Payments - Section 23 Grants,Government Services-Not Elsewhere Classified,GPC
Statement Date 18/06/2015 to 17/07/2015,C&YPS-Non Delegated,LEIC CITY COUNCIL,15/07/2015,23.00,Other Transfer Payments - Section 23 Grants,Government Services-Not Elsewhere Classified,GPC
Statement Date 18/06/2015 to 17/07/2015,C&YPS-Non Delegated,LEIC CITY COUNCIL,18/06/2015,13.00,Other Transfer Payments - Section 24,Government Services-Not Elsewhere Classified,GPC
Statement Date 18/06/2015 to 17/07/2015,C&YPS-Non Delegated,LEICESTER OUTDOOR PURS,13/07/2015,282.50,Other Equipment & Materials - General,"Membership Clubs (Sports, Recreation, Athletic), C",GPC
Statement Date 18/06/2015 to 17/07/2015,C&YPS-Non Delegated,LEICESTERSHIRE C COUNC,22/06/2015,21.00,Other Transfer Payments - Section 23 Grants,Government Services-Not Elsewhere Classified,GPC
Statement Date 18/06/2015 to 17/07/2015,C&YPS-Non Delegated,LIDL UK,10/07/2015,10.75,Materials - General,"Grocery Stores, Supermarkets",GPC
Statement Date 18/06/2015 to 17/07/2015,C&YPS-Non Delegated,LIDL UK,28/06/2015,19.14,Provisions - General,"Grocery Stores, Supermarkets",GPC
Statement Date 18/06/2015 to 17/07/2015,C&YPS-Non Delegated,LIDL UK,10/07/2015,25.66,Provisions - General,"Grocery Stores, Supermarkets",GPC
Statement Date 18/06/2015 to 17/07/2015,C&YPS-Non Delegated,LIDL UK,13/07/2015,28.50,Provisions - General,"Grocery Stores, Supermarkets",GPC
Statement Date 18/06/2015 to 17/07/2015,C&YPS-Non Delegated,LUL TICKET MACHINE,07/07/2015,18.10,Other Expenditure - General,Passenger Railways,GPC
Statement Date 18/06/2015 to 17/07/2015,C&YPS-Non Delegated,LUL TICKET MACHINE,08/07/2015,18.10,Other Expenditure - General,Passenger Railways,GPC
Statement Date 18/06/2015 to 17/07/2015,C&YPS-Non Delegated,M D CLOTHING,18/06/2015,29.99,Materials - General,Men's and Boy's Clothing and Furnishings Store,GPC
Statement Date 18/06/2015 to 17/07/2015,C&YPS-Non Delegated,MAX SPIELMANN LTD,23/06/2015,2.50,Printing - General,Photographic Studios,GPC
Statement Date 18/06/2015 to 17/07/2015,C&YPS-Non Delegated,MCDONALDS,18/06/2015,3.82,Other Equipment & Materials - General,"Eating Places, Restaurants",GPC
Statement Date 18/06/2015 to 17/07/2015,C&YPS-Non Delegated,MCDONALDS,25/06/2015,2.07,Other Equipment & Materials - General,"Eating Places, Restaurants",GPC
Statement Date 18/06/2015 to 17/07/2015,C&YPS-Non Delegated,MCDONALDS,01/07/2015,7.54,Other Equipment & Materials - General,Fast-Food Restaurants (Quick Payment Service Pilot,GPC
Statement Date 18/06/2015 to 17/07/2015,C&YPS-Non Delegated,MCDONALDS,07/07/2015,7.23,Other Equipment & Materials - General,"Eating Places, Restaurants",GPC
Statement Date 18/06/2015 to 17/07/2015,C&YPS-Non Delegated,MCDONALDS,08/07/2015,3.48,Other Equipment & Materials - General,"Eating Places, Restaurants",GPC
Statement Date 18/06/2015 to 17/07/2015,C&YPS-Non Delegated,MCDONALDS,24/06/2015,10.77,Other Expenditure - General,"Eating Places, Restaurants",GPC
Statement Date 18/06/2015 to 17/07/2015,C&YPS-Non Delegated,MCDONALDS,08/07/2015,14.96,Other Expenditure - General,Fast-Food Restaurants (Quick Payment Service Pilot,GPC
Statement Date 18/06/2015 to 17/07/2015,C&YPS-Non Delegated,MDN WELCB/WAITROSE,23/06/2015,5.35,Provisions - General,"Miscellaneous Food Stores-Convenience Stores, Mark",GPC
Statement Date 18/06/2015 to 17/07/2015,C&YPS-Non Delegated,MERCIAN CENTRE,10/07/2015,13.75,Provisions - General,"Miscellaneous Food Stores-Convenience Stores, Mark",GPC
Statement Date 18/06/2015 to 17/07/2015,C&YPS-Non Delegated,MINI MEADOW FARM,30/06/2015,54.80,Other Equipment & Materials - General,Pet Shops-Pet Food and Supplies,GPC
Statement Date 18/06/2015 to 17/07/2015,C&YPS-Non Delegated,MOBILE FLEET VALETING,02/07/2015,17.90,R&M of Vehicles-Non Contract - General,Car Washes,GPC
Statement Date 18/06/2015 to 17/07/2015,C&YPS-Non Delegated,MUFFIN BREAK (LOUGHBOR,18/06/2015,8.95,Other Equipment & Materials - General,"Eating Places, Restaurants",GPC
Statement Date 18/06/2015 to 17/07/2015,C&YPS-Non Delegated,NATIONAL EXPRESS LIMITED,11/07/2015,25.30,Casual/Essential - General,"Bus Lines, Charters, Tour Buses",GPC
Statement Date 18/06/2015 to 17/07/2015,C&YPS-Non Delegated,NCP LIMITED,06/07/2015,4.80,Casual/Essential - General,Automobile Parking Lots and Garages,GPC
Statement Date 18/06/2015 to 17/07/2015,C&YPS-Non Delegated,NCP LIMITED,16/07/2015,6.40,Casual/Essential - General,Automobile Parking Lots and Garages,GPC
Statement Date 18/06/2015 to 17/07/2015,C&YPS-Non Delegated,NCP LIMITED,20/06/2015,2.83,Other Equipment & Materials - General,Automobile Parking Lots and Garages,GPC
Statement Date 18/06/2015 to 17/07/2015,C&YPS-Non Delegated,NEXT DIRECTORY,03/07/2015,29.99,Materials - General,Family Clothing Stores,GPC
Statement Date 18/06/2015 to 17/07/2015,C&YPS-Non Delegated,ODEON,16/07/2015,17.00,Personal Needs of Clients - Holidays & Outings,Motion Picture Theatres,GPC
Statement Date 18/06/2015 to 17/07/2015,C&YPS-Non Delegated,ORIGINAL TOURS,07/07/2015,88.50,Other Expenditure - General,"Theatrical Products (Except Motion Pictures), Tick",GPC
Statement Date 18/06/2015 to 17/07/2015,C&YPS-Non Delegated,PARKING LEIC CC,08/07/2015,3.00,Other Expenditure - General,Government Services-Not Elsewhere Classified,GPC
Statement Date 18/06/2015 to 17/07/2015,C&YPS-Non Delegated,PAYPAL  DARTINGTON,18/06/2015,20.00,Other Services - General,Charitable and Social Service Organizations,GPC
Statement Date 18/06/2015 to 17/07/2015,C&YPS-Non Delegated,PAYPAL  NICHOLAROGE,17/06/2015,5.50,Other Equipment & Materials - General,Children's and Infants' Wear Stores,GPC
Statement Date 18/06/2015 to 17/07/2015,C&YPS-Non Delegated,PAYPAL  SPIN SPORTS,30/06/2015,7.98,Other Equipment & Materials - General,Sporting Goods Stores,GPC
Statement Date 18/06/2015 to 17/07/2015,C&YPS-Non Delegated,PAYPAL  WINDYLISELF,17/06/2015,4.98,Other Equipment & Materials - General,"Artist Supply Stores, Craft Shops",GPC
Statement Date 18/06/2015 to 17/07/2015,C&YPS-Non Delegated,PHOTO ME,25/06/2015,5.00,Printing - General,"Photofinishing Laboratories, Photo Developing",GPC
Statement Date 18/06/2015 to 17/07/2015,C&YPS-Non Delegated,PIZZA HUT 472,07/07/2015,42.44,Other Expenditure - General,"Eating Places, Restaurants",GPC
Statement Date 18/06/2015 to 17/07/2015,C&YPS-Non Delegated,PIZZA HUT DELIVERY,22/06/2015,44.47,Other Expenditure - General,Fast-Food Restaurants (Quick Payment Service Pilot,GPC
Statement Date 18/06/2015 to 17/07/2015,C&YPS-Non Delegated,PLANNING SOLUTIONS LTD,27/06/2015,49.08,Other Equipment & Materials - General,Tourist Attractions and Exhibits,GPC
Statement Date 18/06/2015 to 17/07/2015,C&YPS-Non Delegated,POST OFFICE COUNTER,03/07/2015,2.61,Postal Services - General,Postage Stamps,GPC
Statement Date 18/06/2015 to 17/07/2015,C&YPS-Non Delegated,POUNDLAND LTD 1182,26/06/2015,62.84,Other Equipment & Materials - General,Discount Stores,GPC
Statement Date 18/06/2015 to 17/07/2015,C&YPS-Non Delegated,POUNDSTRETCHER 175,10/07/2015,2.00,Cleaning Materials - General,"Drapery, Window Coverings, and Upholstery Stores",GPC
Statement Date 18/06/2015 to 17/07/2015,C&YPS-Non Delegated,PRIMARK 648,15/07/2015,67.00,Personal Needs of Clients - Clothing,Family Clothing Stores,GPC
Statement Date 18/06/2015 to 17/07/2015,C&YPS-Non Delegated,PRIMARK STORES LTD,08/07/2015,27.00,Personal Needs of Clients - Clothing,Family Clothing Stores,GPC
Statement Date 18/06/2015 to 17/07/2015,C&YPS-Non Delegated,SAINSBURY'S S/MKT,24/06/2015,7.80,Materials - General,"Grocery Stores, Supermarkets",GPC
Statement Date 18/06/2015 to 17/07/2015,C&YPS-Non Delegated,SAINSBURY'S S/MKT,09/07/2015,40.01,Materials - General,"Grocery Stores, Supermarkets",GPC
Statement Date 18/06/2015 to 17/07/2015,C&YPS-Non Delegated,SAINSBURY'S S/MKT,18/06/2015,6.40,Other Equipment & Materials - General,"Grocery Stores, Supermarkets",GPC
Statement Date 18/06/2015 to 17/07/2015,C&YPS-Non Delegated,SAINSBURY'S S/MKT,19/06/2015,3.45,Other Equipment & Materials - General,"Grocery Stores, Supermarkets",GPC
Statement Date 18/06/2015 to 17/07/2015,C&YPS-Non Delegated,SAINSBURY'S S/MKT,22/06/2015,4.55,Other Equipment & Materials - General,"Grocery Stores, Supermarkets",GPC
Statement Date 18/06/2015 to 17/07/2015,C&YPS-Non Delegated,SAINSBURY'S S/MKT,25/06/2015,1.50,Other Equipment & Materials - General,"Grocery Stores, Supermarkets",GPC
Statement Date 18/06/2015 to 17/07/2015,C&YPS-Non Delegated,SAINSBURY'S S/MKT,26/06/2015,12.65,Other Equipment & Materials - General,"Grocery Stores, Supermarkets",GPC
Statement Date 18/06/2015 to 17/07/2015,C&YPS-Non Delegated,SAINSBURY'S S/MKT,03/07/2015,24.25,Other Equipment & Materials - General,"Grocery Stores, Supermarkets",GPC
Statement Date 18/06/2015 to 17/07/2015,C&YPS-Non Delegated,SAINSBURY'S S/MKT,13/07/2015,2.85,Other Equipment & Materials - General,"Grocery Stores, Supermarkets",GPC
Statement Date 18/06/2015 to 17/07/2015,C&YPS-Non Delegated,SAINSBURY'S S/MKT,14/07/2015,4.40,Other Equipment & Materials - General,"Grocery Stores, Supermarkets",GPC
Statement Date 18/06/2015 to 17/07/2015,C&YPS-Non Delegated,SAINSBURY'S S/MKT,14/07/2015,7.95,Provisions - General,"Grocery Stores, Supermarkets",GPC
Statement Date 18/06/2015 to 17/07/2015,C&YPS-Non Delegated,SAINSBURYS S/MKTS,03/07/2015,3.00,Materials - General,"Grocery Stores, Supermarkets",GPC
Statement Date 18/06/2015 to 17/07/2015,C&YPS-Non Delegated,SAINSBURYS S/MKTS,08/07/2015,20.00,Materials - General,"Grocery Stores, Supermarkets",GPC
Statement Date 18/06/2015 to 17/07/2015,C&YPS-Non Delegated,SAINSBURYS S/MKTS,23/06/2015,7.10,Other Equipment & Materials - General,"Grocery Stores, Supermarkets",GPC
Statement Date 18/06/2015 to 17/07/2015,C&YPS-Non Delegated,SAINSBURYS S/MKTS,23/06/2015,0.65,Other Equipment & Materials - General,"Grocery Stores, Supermarkets",GPC
Statement Date 18/06/2015 to 17/07/2015,C&YPS-Non Delegated,SAINSBURYS S/MKTS,30/06/2015,4.00,Other Equipment & Materials - General,"Grocery Stores, Supermarkets",GPC
Statement Date 18/06/2015 to 17/07/2015,C&YPS-Non Delegated,SAINSBURYS S/MKTS,09/07/2015,14.15,Provisions - General,"Grocery Stores, Supermarkets",GPC
Statement Date 18/06/2015 to 17/07/2015,C&YPS-Non Delegated,SCARBOROUGH,13/07/2015,37.50,Other Equipment & Materials - General,Tourist Attractions and Exhibits,GPC
Statement Date 18/06/2015 to 17/07/2015,C&YPS-Non Delegated,SENSORY DIRECT,19/06/2015,138.59,Materials - General,"Hobby, Toy, and Game Shops",GPC
Statement Date 18/06/2015 to 17/07/2015,C&YPS-Non Delegated,SPECSAVERS,26/06/2015,99.00,Personal Needs of Clients - Drugs & Medical Requisitions,Opticians,GPC
Statement Date 18/06/2015 to 17/07/2015,C&YPS-Non Delegated,SPORTSDIRECT 125,23/06/2015,32.99,Personal Needs of Clients - Clothing,Sporting Goods Stores,GPC
Statement Date 18/06/2015 to 17/07/2015,C&YPS-Non Delegated,SPORTSDIRECT 371,08/07/2015,27.98,Personal Needs of Clients - Clothing,Sporting Goods Stores,GPC
Statement Date 18/06/2015 to 17/07/2015,C&YPS-Non Delegated,SPORTSDIRECT 710,18/06/2015,36.99,Materials - General,Sporting Goods Stores,GPC
Statement Date 18/06/2015 to 17/07/2015,C&YPS-Non Delegated,SQUIDCARD,24/06/2015,15.00,Personal Needs of Clients - General,Business Services-Not Elsewhere Classified,GPC
Statement Date 18/06/2015 to 17/07/2015,C&YPS-Non Delegated,SQUIDCARD,02/07/2015,20.00,Personal Needs of Clients - General,Business Services-Not Elsewhere Classified,GPC
Statement Date 18/06/2015 to 17/07/2015,C&YPS-Non Delegated,STORE FINANCIAL SERVIC,06/07/2015,185.00,Materials - General,Miscellaneous and Specialty Retail Stores,GPC
Statement Date 18/06/2015 to 17/07/2015,C&YPS-Non Delegated,SUBWAY,06/07/2015,17.54,Other Expenditure - General,Fast-Food Restaurants (Quick Payment Service Pilot,GPC
Statement Date 18/06/2015 to 17/07/2015,C&YPS-Non Delegated,SURVEYMONKEY.COM,01/07/2015,190.83,Communications Equipment - General,Computer Network/Information Services,GPC
Statement Date 18/06/2015 to 17/07/2015,C&YPS-Non Delegated,TESCO STORE 2849,18/06/2015,28.22,Other Equipment & Materials - General,"Grocery Stores, Supermarkets",GPC
Statement Date 18/06/2015 to 17/07/2015,C&YPS-Non Delegated,TESCO STORE 2849,20/06/2015,166.88,Other Equipment & Materials - General,"Grocery Stores, Supermarkets",GPC
Statement Date 18/06/2015 to 17/07/2015,C&YPS-Non Delegated,TESCO STORE 2849,22/06/2015,22.25,Other Equipment & Materials - General,"Grocery Stores, Supermarkets",GPC
Statement Date 18/06/2015 to 17/07/2015,C&YPS-Non Delegated,TESCO STORE 2849,25/06/2015,8.50,Other Equipment & Materials - General,"Grocery Stores, Supermarkets",GPC
Statement Date 18/06/2015 to 17/07/2015,C&YPS-Non Delegated,TESCO STORE 2849,29/06/2015,8.77,Other Equipment & Materials - General,"Grocery Stores, Supermarkets",GPC
Statement Date 18/06/2015 to 17/07/2015,C&YPS-Non Delegated,TESCO STORE 2849,07/07/2015,22.89,Other Equipment & Materials - General,"Grocery Stores, Supermarkets",GPC
Statement Date 18/06/2015 to 17/07/2015,C&YPS-Non Delegated,TESCO STORE 2849,07/07/2015,4.75,Other Equipment & Materials - General,"Grocery Stores, Supermarkets",GPC
Statement Date 18/06/2015 to 17/07/2015,C&YPS-Non Delegated,TESCO STORE 2849,08/07/2015,12.99,Other Equipment & Materials - General,"Grocery Stores, Supermarkets",GPC
Statement Date 18/06/2015 to 17/07/2015,C&YPS-Non Delegated,TESCO STORE 2849,17/06/2015,5.13,Subsistence - General,"Grocery Stores, Supermarkets",GPC
Statement Date 18/06/2015 to 17/07/2015,C&YPS-Non Delegated,TESCO STORE 3115,02/07/2015,6.33,Materials - General,"Grocery Stores, Supermarkets",GPC
Statement Date 18/06/2015 to 17/07/2015,C&YPS-Non Delegated,TESCO STORES 2044,18/06/2015,15.90,Provisions - General,"Grocery Stores, Supermarkets",GPC
Statement Date 18/06/2015 to 17/07/2015,C&YPS-Non Delegated,TESCO STORES 2849,19/06/2015,4.00,Other Equipment & Materials - General,"Grocery Stores, Supermarkets",GPC
Statement Date 18/06/2015 to 17/07/2015,C&YPS-Non Delegated,TESCO STORES 2849,29/06/2015,8.50,Other Equipment & Materials - General,"Grocery Stores, Supermarkets",GPC
Statement Date 18/06/2015 to 17/07/2015,C&YPS-Non Delegated,TESCO STORES 2849,02/07/2015,10.70,Other Equipment & Materials - General,"Grocery Stores, Supermarkets",GPC
Statement Date 18/06/2015 to 17/07/2015,C&YPS-Non Delegated,TESCO STORES 2849,09/07/2015,4.35,Other Equipment & Materials - General,"Grocery Stores, Supermarkets",GPC
Statement Date 18/06/2015 to 17/07/2015,C&YPS-Non Delegated,TESCO STORES 5182,24/06/2015,11.63,Other Equipment & Materials - General,"Grocery Stores, Supermarkets",GPC
Statement Date 18/06/2015 to 17/07/2015,C&YPS-Non Delegated,TESCO STORES 5182,25/06/2015,6.00,Other Equipment & Materials - General,"Grocery Stores, Supermarkets",GPC
Statement Date 18/06/2015 to 17/07/2015,C&YPS-Non Delegated,TESCO STORES 5182,14/07/2015,21.66,Other Equipment & Materials - General,"Grocery Stores, Supermarkets",GPC
Statement Date 18/06/2015 to 17/07/2015,C&YPS-Non Delegated,TESCO STORES 5182,24/06/2015,29.00,Personal Needs of Clients - Clothing,"Grocery Stores, Supermarkets",GPC
Statement Date 18/06/2015 to 17/07/2015,C&YPS-Non Delegated,TESCO STORES 5902,23/06/2015,71.55,Provisions - General,"Grocery Stores, Supermarkets",GPC
Statement Date 18/06/2015 to 17/07/2015,C&YPS-Non Delegated,TESCO STORES 6135,20/06/2015,20.25,Other Equipment & Materials - General,"Grocery Stores, Supermarkets",GPC
Statement Date 18/06/2015 to 17/07/2015,C&YPS-Non Delegated,TESCO STORES 6782,18/06/2015,3.89,Materials - General,"Grocery Stores, Supermarkets",GPC
Statement Date 18/06/2015 to 17/07/2015,C&YPS-Non Delegated,TESCO STORES-2044,22/06/2015,15.56,Other Equipment & Materials - General,"Grocery Stores, Supermarkets",GPC
Statement Date 18/06/2015 to 17/07/2015,C&YPS-Non Delegated,THE BOOK PEOPLE,17/06/2015,9.94,Books - General,Book Stores,GPC
Statement Date 18/06/2015 to 17/07/2015,C&YPS-Non Delegated,THE BOOK PEOPLE,02/07/2015,22.91,Books - General,Book Stores,GPC
Statement Date 18/06/2015 to 17/07/2015,C&YPS-Non Delegated,THE BOOK PEOPLE,07/07/2015,56.93,Books - General,Book Stores,GPC
Statement Date 18/06/2015 to 17/07/2015,C&YPS-Non Delegated,THE BOOK PEOPLE,09/07/2015,22.91,Books - General,Book Stores,GPC
Statement Date 18/06/2015 to 17/07/2015,C&YPS-Non Delegated,THE GUIDE ASSOCIATION,16/07/2015,17.95,Personal Needs of Clients - Clothing,Membership Organizations-Not Elsewhere Classified,GPC
Statement Date 18/06/2015 to 17/07/2015,C&YPS-Non Delegated,THE RANGE - LOUGHBOROU,26/06/2015,106.28,Other Equipment & Materials - General,Miscellaneous and Specialty Retail Stores,GPC
Statement Date 18/06/2015 to 17/07/2015,C&YPS-Non Delegated,THE RANGE - LOUGHBOROU,30/06/2015,12.60,Other Equipment & Materials - General,Miscellaneous and Specialty Retail Stores,GPC
Statement Date 18/06/2015 to 17/07/2015,C&YPS-Non Delegated,THE RANGE - LOUGHBOROU,07/07/2015,51.05,Other Equipment & Materials - General,Miscellaneous and Specialty Retail Stores,GPC
Statement Date 18/06/2015 to 17/07/2015,C&YPS-Non Delegated,THE WORKS,26/06/2015,4.00,Other Equipment & Materials - General,Book Stores,GPC
Statement Date 18/06/2015 to 17/07/2015,C&YPS-Non Delegated,TIMPSON LTD,03/07/2015,24.00,Materials - General,"Shoe Repair Shops, Shoe Shine Parlors, Hat Cleanin",GPC
Statement Date 18/06/2015 to 17/07/2015,C&YPS-Non Delegated,TVLICENSING.CO.UK,19/06/2015,145.50,Schools Agency staff - Teaching Staff,"Management, Consulting and Public Relations Servic",GPC
Statement Date 18/06/2015 to 17/07/2015,C&YPS-Non Delegated,TVLICENSING.CO.UK,08/07/2015,145.50,Schools Agency staff - Teaching Staff,"Management, Consulting and Public Relations Servic",GPC
Statement Date 18/06/2015 to 17/07/2015,C&YPS-Non Delegated,TWO STEEPLES,25/06/2015,2.04,Other Equipment & Materials - General,"Drinking Places (Alcoholic Beverages)-Bars, Tavern",GPC
Statement Date 18/06/2015 to 17/07/2015,C&YPS-Non Delegated,TWO STEEPLES,01/07/2015,2.04,Other Equipment & Materials - General,"Drinking Places (Alcoholic Beverages)-Bars, Tavern",GPC
Statement Date 18/06/2015 to 17/07/2015,C&YPS-Non Delegated,UPT-EAST MIDLANDS TRN-LB,25/06/2015,11.00,Schools Agency staff - Teaching Staff,Professional Services-Not Elsewhere Classified,GPC
Statement Date 18/06/2015 to 17/07/2015,C&YPS-Non Delegated,W M MORRISONS,24/06/2015,7.20,Other Equipment & Materials - General,"Grocery Stores, Supermarkets",GPC
Statement Date 18/06/2015 to 17/07/2015,C&YPS-Non Delegated,W M MORRISONS,06/07/2015,11.74,Other Equipment & Materials - General,"Grocery Stores, Supermarkets",GPC
Statement Date 18/06/2015 to 17/07/2015,C&YPS-Non Delegated,W M MORRISONS,07/07/2015,4.21,Other Equipment & Materials - General,"Grocery Stores, Supermarkets",GPC
Statement Date 18/06/2015 to 17/07/2015,C&YPS-Non Delegated,W M MORRISONS,08/07/2015,18.41,Other Equipment & Materials - General,"Grocery Stores, Supermarkets",GPC
Statement Date 18/06/2015 to 17/07/2015,C&YPS-Non Delegated,W M MORRISONS,10/07/2015,8.93,Other Equipment & Materials - General,"Grocery Stores, Supermarkets",GPC
Statement Date 18/06/2015 to 17/07/2015,C&YPS-Non Delegated,W M MORRISONS,16/07/2015,11.52,Other Equipment & Materials - General,"Grocery Stores, Supermarkets",GPC
Statement Date 18/06/2015 to 17/07/2015,C&YPS-Non Delegated,W M MORRISONS CAFE,23/06/2015,2.65,Subsistence - General,"Eating Places, Restaurants",GPC
Statement Date 18/06/2015 to 17/07/2015,C&YPS-Non Delegated,WAITROSE 487,08/07/2015,13.97,Materials - General,"Grocery Stores, Supermarkets",GPC
Statement Date 18/06/2015 to 17/07/2015,C&YPS-Non Delegated,WEST COAST TRAINS,02/07/2015,6.00,Casual/Essential - General,Automobile Parking Lots and Garages,GPC
Statement Date 18/06/2015 to 17/07/2015,C&YPS-Non Delegated,WILKO RETAIL LIMIT,02/07/2015,63.20,General Equipment - General,Household Appliance Stores,GPC
Statement Date 18/06/2015 to 17/07/2015,C&YPS-Non Delegated,WILKO RETAIL LIMIT,08/07/2015,17.00,Materials - General,Household Appliance Stores,GPC
Statement Date 18/06/2015 to 17/07/2015,C&YPS-Non Delegated,WILKO RETAIL LIMIT,02/07/2015,5.00,Other Equipment & Materials - General,Household Appliance Stores,GPC
Statement Date 18/06/2015 to 17/07/2015,C&YPS-Non Delegated,WM MORRISON 054,19/06/2015,8.76,Materials - General,"Grocery Stores, Supermarkets",GPC
Statement Date 18/06/2015 to 17/07/2015,C&YPS-Non Delegated,WM MORRISON 054,25/06/2015,45.21,Other Equipment & Materials - General,"Grocery Stores, Supermarkets",GPC
Statement Date 18/06/2015 to 17/07/2015,C&YPS-Non Delegated,WM MORRISONS,13/07/2015,29.33,Other Equipment & Materials - General,"Grocery Stores, Supermarkets",GPC
Statement Date 18/06/2015 to 17/07/2015,C&YPS-Non Delegated,WOODSIDE GARAGE,06/07/2015,173.42,Other Equipment & Materials - General,Automobile Rental Agency,GPC
Statement Date 18/06/2015 to 17/07/2015,C&YPS-Non Delegated,WP-ACAS,11/02/2015,-114.00,Training Expenses - General,Professional Services-Not Elsewhere Classified,GPC
Statement Date 18/06/2015 to 17/07/2015,C&YPS-Non Delegated,WP-YMCA FAIRTHORNE,16/06/2015,876.00,Other Equipment & Materials - General,Charitable and Social Service Organizations,GPC
Statement Date 18/06/2015 to 17/07/2015,C&YPS-Non Delegated,WWW.BAAF.ORG.UK,30/06/2015,96.40,Stationery - General,CombinationMail/Phones and Retail Merchants,GPC
Statement Date 18/06/2015 to 17/07/2015,C&YPS-Non Delegated,WWW.BAAF.ORG.UK,08/07/2015,17.95,Stationery - General,CombinationMail/Phones and Retail Merchants,GPC
Statement Date 18/06/2015 to 17/07/2015,C&YPS-Non Delegated,WWW.BIRMINGHAM.GOV.UK,23/06/2015,12.00,Other Transfer Payments - Sector 17- Other,Schools and Educational Services-Not Elsewhere Cla,GPC
Statement Date 18/06/2015 to 17/07/2015,C&YPS-Non Delegated,WWW.C2UOFFICE.CO.U,24/06/2015,137.80,Printing - General,"Stationery, Office, and School Supply Stores",GPC
Statement Date 18/06/2015 to 17/07/2015,C&YPS-Non Delegated,WWW.DERBY.GOV.UK,24/06/2015,11.20,Other Expenditure - General,Government Services-Not Elsewhere Classified,GPC
Statement Date 18/06/2015 to 17/07/2015,C&YPS-Non Delegated,WWW.DVLA.GOV.UK,13/07/2015,167.50,Road Licences - General,Government Services-Not Elsewhere Classified,GPC
Statement Date 18/06/2015 to 17/07/2015,C&YPS-Non Delegated,WWW.FLYBE.COFZC5QN,07/07/2015,259.54,Casual/Essential - General,"Air Carriers, Airlines",GPC
Statement Date 18/06/2015 to 17/07/2015,C&YPS-Non Delegated,WWW.GRAVELMASTER.C,18/06/2015,70.83,Other Equipment & Materials - General,"Building Materials, Lumber Stores",GPC
Statement Date 18/06/2015 to 17/07/2015,C&YPS-Non Delegated,WWW.LEISURE.ORDNANCE,26/06/2015,7.99,Other Equipment & Materials - General,Catalog Merchants,GPC
Statement Date 18/06/2015 to 17/07/2015,C&YPS-Non Delegated,WWW.MACDONALDHOTELS.CO.U,07/07/2015,81.00,Subsistence - General,"Lodging-Hotels, Motels, Resorts",GPC
Statement Date 18/06/2015 to 17/07/2015,C&YPS-Non Delegated,WWW.MILKANDMORE.CO.UK,22/06/2015,9.40,Provisions - General,Continuity/Subscription Merchants,GPC
Statement Date 18/06/2015 to 17/07/2015,C&YPS-Non Delegated,WWW.MILKANDMORE.CO.UK,01/07/2015,14.04,Provisions - General,Continuity/Subscription Merchants,GPC
Statement Date 18/06/2015 to 17/07/2015,C&YPS-Non Delegated,WWW.MILKANDMORE.CO.UK,01/07/2015,9.40,Provisions - General,Continuity/Subscription Merchants,GPC
Statement Date 18/06/2015 to 17/07/2015,C&YPS-Non Delegated,WWW.MILKANDMORE.CO.UK,01/07/2015,6.24,Provisions - General,Continuity/Subscription Merchants,GPC
Statement Date 18/06/2015 to 17/07/2015,C&YPS-Non Delegated,WWW.ROMPALTD.COM,19/06/2015,36.55,Materials - General,Miscellaneous and Specialty Retail Stores,GPC
Statement Date 18/06/2015 to 17/07/2015,C&YPS-Non Delegated,WWW.TEACHERSHOP.SCHOLAST,17/06/2015,55.94,Materials - General,Miscellaneous and Specialty Retail Stores,GPC
Statement Date 18/06/2015 to 17/07/2015,C&YPS-Non Delegated,WWW.THEWORKS.CO.UK,25/06/2015,60.00,Books - General,Book Stores,GPC
Statement Date 18/06/2015 to 17/07/2015,C&YPS-Non Delegated,WWW.WIGHTLINK.CO.UK,14/07/2015,24.40,Public Transport -  Staff - General,Local and Suburban Commuter Pass Trans,GPC
Statement Date 18/06/2015 to 17/07/2015,C&YPS-Schools,360 PLAY (LEICESTER) L,30/06/2015,11.95,Public Transport -  Staff - General,RECREATION SERVICES--NOT ELSEWHERE CLASSIFIED,GPC
Statement Date 18/06/2015 to 17/07/2015,C&YPS-Schools,Amazon Svcs Europe SAR,03/07/2015,2.93,Books - General,Book Stores,GPC
Statement Date 18/06/2015 to 17/07/2015,C&YPS-Schools,Amazon UK Marketplace,02/07/2015,15.43,Books - General,Book Stores,GPC
Statement Date 18/06/2015 to 17/07/2015,C&YPS-Schools,Amazon UK Marketplace,03/07/2015,13.50,Books - General,Book Stores,GPC
Statement Date 18/06/2015 to 17/07/2015,C&YPS-Schools,Amazon UK Marketplace,29/06/2015,16.76,Materials - General,Miscellaneous and Specialty Retail Stores,GPC
Statement Date 18/06/2015 to 17/07/2015,C&YPS-Schools,Amazon UK Marketplace,30/06/2015,4.92,Materials - General,Miscellaneous and Specialty Retail Stores,GPC
Statement Date 18/06/2015 to 17/07/2015,C&YPS-Schools,Amazon UK Marketplace,02/07/2015,7.08,Materials - General,Miscellaneous and Specialty Retail Stores,GPC
Statement Date 18/06/2015 to 17/07/2015,C&YPS-Schools,Amazon UK Retail,30/06/2015,23.99,Other Expenditure - General,Direct Marketers - Other,GPC
Statement Date 18/06/2015 to 17/07/2015,C&YPS-Schools,ARGOS LTD,25/06/2015,12.34,Materials - General,Discount Stores,GPC
Statement Date 18/06/2015 to 17/07/2015,C&YPS-Schools,ARGOS LTD,25/06/2015,4.74,Materials - General,Discount Stores,GPC
Statement Date 18/06/2015 to 17/07/2015,C&YPS-Schools,ARGOS LTD,08/07/2015,30.00,Materials - General,Discount Stores,GPC
Statement Date 18/06/2015 to 17/07/2015,C&YPS-Schools,ARGOS LTD,09/07/2015,120.00,Materials - General,Discount Stores,GPC
Statement Date 18/06/2015 to 17/07/2015,C&YPS-Schools,ASDA STORES,07/07/2015,5.00,Materials - General,"Grocery Stores, Supermarkets",GPC
Statement Date 18/06/2015 to 17/07/2015,C&YPS-Schools,B&M RETAIL,21/06/2015,19.90,Materials - General,Discount Stores,GPC
Statement Date 18/06/2015 to 17/07/2015,C&YPS-Schools,GAME RETAIL LTD RUGBY,21/06/2015,15.00,Materials - General,"Hobby, Toy, and Game Shops",GPC
Statement Date 18/06/2015 to 17/07/2015,C&YPS-Schools,GAME RETAIL LTD RUGBY,21/06/2015,30.00,Materials - General,"Hobby, Toy, and Game Shops",GPC
Statement Date 18/06/2015 to 17/07/2015,C&YPS-Schools,JS ONLINE GROCERY,23/06/2015,78.50,Materials - General,"Grocery Stores, Supermarkets",GPC
Statement Date 18/06/2015 to 17/07/2015,C&YPS-Schools,JS ONLINE GROCERY,30/06/2015,51.90,Materials - General,"Grocery Stores, Supermarkets",GPC
Statement Date 18/06/2015 to 17/07/2015,C&YPS-Schools,JS ONLINE GROCERY,07/07/2015,113.30,Materials - General,"Grocery Stores, Supermarkets",GPC
Statement Date 18/06/2015 to 17/07/2015,C&YPS-Schools,MCDONALDS,01/07/2015,18.22,Subsistence - General,"Eating Places, Restaurants",GPC
Statement Date 18/06/2015 to 17/07/2015,C&YPS-Schools,PAYPAL  NIAZ55,23/06/2015,10.85,Materials - General,Miscellaneous and Specialty Retail Stores,GPC
Statement Date 18/06/2015 to 17/07/2015,C&YPS-Schools,SAINSBURYS S/MKTS,25/06/2015,3.44,Materials - General,"Grocery Stores, Supermarkets",GPC
Statement Date 18/06/2015 to 17/07/2015,C&YPS-Schools,TESCO STORES 5182,30/06/2015,5.00,Materials - General,"Grocery Stores, Supermarkets",GPC
Statement Date 18/06/2015 to 17/07/2015,C&YPS-Schools,THE BOOK PEOPLE,26/06/2015,38.00,Books - General,Book Stores,GPC
Statement Date 18/06/2015 to 17/07/2015,C&YPS-Schools,WICKES BUILDING,29/06/2015,122.54,R & M of Buildings - General,"Building Materials, Lumber Stores",GPC
Statement Date 18/06/2015 to 17/07/2015,Capital,ADAS,09/07/2015,180.00,Infrastructure - Main Contract,"Management, Consulting and Public Relations Servic",GPC
Statement Date 18/06/2015 to 17/07/2015,Capital,BLABY DISTRICT COUNCIL,19/06/2015,914.85,Buildings - Operational - Expenditure,Government Services-Not Elsewhere Classified,GPC
Statement Date 18/06/2015 to 17/07/2015,Capital,BLABY DISTRICT COUNCIL,19/06/2015,261.89,Buildings - Operational - Expenditure,Government Services-Not Elsewhere Classified,GPC
Statement Date 18/06/2015 to 17/07/2015,Chief Executive,Amazon Svcs Europe SAR,19/06/2015,2.99,Other Expenditure - General,Book Stores,GPC
Statement Date 18/06/2015 to 17/07/2015,Chief Executive,Amazon Svcs Europe SAR,24/06/2015,1.65,Stationery - General,Book Stores,GPC
Statement Date 18/06/2015 to 17/07/2015,Chief Executive,Amazon UK Marketplace,01/07/2015,90.00,Materials - General,Miscellaneous and Specialty Retail Stores,GPC
Statement Date 18/06/2015 to 17/07/2015,Chief Executive,Amazon UK Marketplace,29/06/2015,20.48,Stationery - General,Miscellaneous and Specialty Retail Stores,GPC
Statement Date 18/06/2015 to 17/07/2015,Chief Executive,Amazon UK Marketplace,15/07/2015,4.10,Stationery - General,Miscellaneous and Specialty Retail Stores,GPC
Statement Date 18/06/2015 to 17/07/2015,Chief Executive,Amazon UK Retail,26/06/2015,33.65,Books - General,Direct Marketers - Other,GPC
Statement Date 18/06/2015 to 17/07/2015,Chief Executive,Amazon UK Retail,01/07/2015,46.80,Other Expenditure - General,Direct Marketers - Other,GPC
Statement Date 18/06/2015 to 17/07/2015,Chief Executive,Amazon UK Retail,23/06/2015,3.92,Stationery - General,Direct Marketers - Other,GPC
Statement Date 18/06/2015 to 17/07/2015,Chief Executive,CHARNWOOD BOROUGH COUNCI,19/06/2015,1.60,Casual/Essential - General,Automobile Parking Lots and Garages,GPC
Statement Date 18/06/2015 to 17/07/2015,Chief Executive,CHARNWOOD BOROUGH COUNCI,07/07/2015,4.80,Casual/Essential - General,Automobile Parking Lots and Garages,GPC
Statement Date 18/06/2015 to 17/07/2015,Chief Executive,CHARNWOOD BOROUGH COUNCI,14/07/2015,4.80,Casual/Essential - General,Automobile Parking Lots and Garages,GPC
Statement Date 18/06/2015 to 17/07/2015,Chief Executive,CITY SURPLUS,18/06/2015,4.99,Other Equipment & Materials - General,Men's And Women's Clothing Stores,GPC
Statement Date 18/06/2015 to 17/07/2015,Chief Executive,DISCLOSURE SCOT,18/06/2015,25.00,IT Equipment - General,Government Services-Not Elsewhere Classified,GPC
Statement Date 18/06/2015 to 17/07/2015,Chief Executive,EAST MIDLANDS LEICESTER,17/06/2015,7.00,Casual/Essential - General,Automobile Parking Lots and Garages,GPC
Statement Date 18/06/2015 to 17/07/2015,Chief Executive,EAST MIDLANDS LEICESTER,06/07/2015,13.00,Casual/Essential - General,Automobile Parking Lots and Garages,GPC
Statement Date 18/06/2015 to 17/07/2015,Chief Executive,HALFORDS 0977,19/06/2015,14.97,Other Expenditure - General,Bicycle Shops-Sales and Service,GPC
Statement Date 18/06/2015 to 17/07/2015,Chief Executive,HARROGATE TAP,01/07/2015,12.65,Subsistence - General,"Drinking Places (Alcoholic Beverages)-Bars, Tavern",GPC
Statement Date 18/06/2015 to 17/07/2015,Chief Executive,HOLIDAY INNS,01/07/2015,390.00,Conference - General,Holiday Inns,GPC
Statement Date 18/06/2015 to 17/07/2015,Chief Executive,HOLIDAY INNS,02/07/2015,11.67,Subsistence - General,Holiday Inns,GPC
Statement Date 18/06/2015 to 17/07/2015,Chief Executive,HOLIDAY INNS,02/07/2015,14.00,Subsistence - General,Holiday Inns,GPC
Statement Date 18/06/2015 to 17/07/2015,Chief Executive,NCP LIMITED,24/06/2015,7.00,Casual/Essential - General,Automobile Parking Lots and Garages,GPC
Statement Date 18/06/2015 to 17/07/2015,Chief Executive,NCP LIMITED,25/06/2015,7.00,Casual/Essential - General,Automobile Parking Lots and Garages,GPC
Statement Date 18/06/2015 to 17/07/2015,Chief Executive,PAYBYPHONE PARKING,18/06/2015,19.40,Other Expenditure - General,Automobile Parking Lots and Garages,GPC
Statement Date 18/06/2015 to 17/07/2015,Chief Executive,PAYPAL  LOCALINFORM,07/07/2015,175.00,Conference - General,Charitable and Social Service Organizations,GPC
Statement Date 18/06/2015 to 17/07/2015,Chief Executive,POUNDLAND LTD 1339,06/07/2015,2.50,Other Expenditure - General,Discount Stores,GPC
Statement Date 18/06/2015 to 17/07/2015,Chief Executive,SAINSBURY'S S/MKT,06/07/2015,8.00,Other Expenditure - General,"Grocery Stores, Supermarkets",GPC
Statement Date 18/06/2015 to 17/07/2015,Chief Executive,STATIONERY OFFICE BOOK,03/07/2015,22.00,Other Expenditure - General,Catalog Merchants,GPC
Statement Date 18/06/2015 to 17/07/2015,Chief Executive,SUPERDRUG STORES PLC,24/06/2015,2.49,Other Expenditure - General,"Drug Stores, Pharmacies",GPC
Statement Date 18/06/2015 to 17/07/2015,Chief Executive,TESCO STORES 2849,21/06/2015,35.22,Materials - General,"Grocery Stores, Supermarkets",GPC
Statement Date 18/06/2015 to 17/07/2015,Chief Executive,TFL CC/LEZ CHARGE,18/06/2015,11.50,Other Expenditure - General,"Bridge and Road Fees, Tolls",GPC
Statement Date 18/06/2015 to 17/07/2015,Chief Executive,TRAVELODGE AGENT,16/07/2015,112.63,Other Expenditure - General,Travelodge,GPC
Statement Date 18/06/2015 to 17/07/2015,Chief Executive,UKOFFICEDIRECT.CO.,16/07/2015,12.64,Stationery - General,"Stationery, Office, and School Supply Stores",GPC
Statement Date 18/06/2015 to 17/07/2015,Chief Executive,VIOVET.CO.UK,24/06/2015,35.96,Protective Clothing & Uniforms - General,"Drug Stores, Pharmacies",GPC
Statement Date 18/06/2015 to 17/07/2015,Chief Executive,VIOVET.CO.UK,07/07/2015,50.41,Protective Clothing & Uniforms - General,"Drug Stores, Pharmacies",GPC
Statement Date 18/06/2015 to 17/07/2015,Chief Executive,VIVIDO RESTAURANT,30/06/2015,23.70,Subsistence - General,"Eating Places, Restaurants",GPC
Statement Date 18/06/2015 to 17/07/2015,Chief Executive,WILKO RETAIL LIMIT,29/06/2015,5.00,Other Expenditure - General,Household Appliance Stores,GPC
Statement Date 18/06/2015 to 17/07/2015,Chief Executive,WWW.MAPLIN.CO.UK,24/06/2015,119.85,Other Expenditure - General,"RADIO, TELEVISION, AND STEREO STORES (ELECTRONIC STORES)",GPC
Statement Date 18/06/2015 to 17/07/2015,Chief Executive,WWW.POSTURITE.CO.UK,10/07/2015,33.84,Other Expenditure - General,Commercial Furniture,GPC
Statement Date 18/06/2015 to 17/07/2015,Corporate Resources,A W BEESLEY & SON,18/06/2015,7.45,Other Services - General,"Lawn and Garden Supply Stores, Nurseries",GPC
Statement Date 18/06/2015 to 17/07/2015,Corporate Resources,ACE OVERALLS,24/06/2015,43.95,Protective Clothing & Uniforms - General,Men's and Boy's Clothing and Furnishings Store,GPC
Statement Date 18/06/2015 to 17/07/2015,Corporate Resources,Amazon Svcs Europe SAR,17/06/2015,72.50,IT Equipment - Purchase - Hardware,Book Stores,GPC
Statement Date 18/06/2015 to 17/07/2015,Corporate Resources,Amazon Svcs Europe SAR,03/07/2015,17.90,Other Services - General,Book Stores,GPC
Statement Date 18/06/2015 to 17/07/2015,Corporate Resources,Amazon Svcs Europe SAR,22/06/2015,19.68,Stationery - General,Book Stores,GPC
Statement Date 18/06/2015 to 17/07/2015,Corporate Resources,Amazon Svcs Europe SAR,26/06/2015,27.00,Stationery - General,Book Stores,GPC
Statement Date 18/06/2015 to 17/07/2015,Corporate Resources,Amazon Svcs Europe SAR,27/06/2015,3.59,Stationery - General,Book Stores,GPC
Statement Date 18/06/2015 to 17/07/2015,Corporate Resources,Amazon Svcs Europe SAR,07/07/2015,-27.00,Stationery - General,Book Stores,GPC
Statement Date 18/06/2015 to 17/07/2015,Corporate Resources,Amazon Svcs Europe SAR,16/07/2015,1.35,Stationery - General,Book Stores,GPC
Statement Date 18/06/2015 to 17/07/2015,Corporate Resources,Amazon Svcs Europe SAR,19/06/2015,32.52,Telephones - Mobile Phones,Book Stores,GPC
Statement Date 18/06/2015 to 17/07/2015,Corporate Resources,Amazon UK Marketplace,20/06/2015,50.75,Books - General,Miscellaneous and Specialty Retail Stores,GPC
Statement Date 18/06/2015 to 17/07/2015,Corporate Resources,Amazon UK Marketplace,26/06/2015,26.50,IT Equipment - General,Book Stores,GPC
Statement Date 18/06/2015 to 17/07/2015,Corporate Resources,Amazon UK Marketplace,18/06/2015,23.20,Other Services - General,Miscellaneous and Specialty Retail Stores,GPC
Statement Date 18/06/2015 to 17/07/2015,Corporate Resources,Amazon UK Marketplace,19/06/2015,22.67,Stationery - General,Book Stores,GPC
Statement Date 18/06/2015 to 17/07/2015,Corporate Resources,Amazon UK Marketplace,07/07/2015,2.20,Stationery - General,Miscellaneous and Specialty Retail Stores,GPC
Statement Date 18/06/2015 to 17/07/2015,Corporate Resources,Amazon UK Marketplace,17/06/2015,8.73,Telephones - Mobile Phones,Book Stores,GPC
Statement Date 18/06/2015 to 17/07/2015,Corporate Resources,Amazon UK Marketplace,18/06/2015,7.32,Telephones - Mobile Phones,Book Stores,GPC
Statement Date 18/06/2015 to 17/07/2015,Corporate Resources,Amazon UK Marketplace,18/06/2015,21.27,Telephones - Mobile Phones,Miscellaneous and Specialty Retail Stores,GPC
Statement Date 18/06/2015 to 17/07/2015,Corporate Resources,Amazon UK Marketplace,26/06/2015,2.81,Training Expenses - General,Miscellaneous and Specialty Retail Stores,GPC
Statement Date 18/06/2015 to 17/07/2015,Corporate Resources,Amazon UK Marketplace,03/07/2015,4.51,Training Expenses - General,Miscellaneous and Specialty Retail Stores,GPC
Statement Date 18/06/2015 to 17/07/2015,Corporate Resources,Amazon UK Marketplace,03/07/2015,4.50,Training Expenses - General,Miscellaneous and Specialty Retail Stores,GPC
Statement Date 18/06/2015 to 17/07/2015,Corporate Resources,Amazon UK Retail,22/06/2015,7.49,IT Equipment - Purchase - Hardware,Direct Marketers - Other,GPC
Statement Date 18/06/2015 to 17/07/2015,Corporate Resources,Amazon UK Retail,08/07/2015,24.43,Materials - General,Direct Marketers - Other,GPC
Statement Date 18/06/2015 to 17/07/2015,Corporate Resources,Amazon UK Retail,18/06/2015,11.08,Other Services - General,Direct Marketers - Other,GPC
Statement Date 18/06/2015 to 17/07/2015,Corporate Resources,Amazon UK Retail,24/06/2015,93.08,Other Services - General,Direct Marketers - Other,GPC
Statement Date 18/06/2015 to 17/07/2015,Corporate Resources,Amazon UK Retail,13/07/2015,11.66,Other Services - General,Direct Marketers - Other,GPC
Statement Date 18/06/2015 to 17/07/2015,Corporate Resources,AMBERWING LTD,24/06/2015,1000.00,Training Expenses - General,"Colleges, Universities, Professional Schools, and",GPC
Statement Date 18/06/2015 to 17/07/2015,Corporate Resources,AMT COFFEE,07/07/2015,1.90,Subsistence - General,"Eating Places, Restaurants",GPC
Statement Date 18/06/2015 to 17/07/2015,Corporate Resources,APCOA - NWR LEEDS,01/07/2015,5.50,Casual/Essential - General,Automobile Parking Lots and Garages,GPC
Statement Date 18/06/2015 to 17/07/2015,Corporate Resources,APCOA - NWR LEEDS,13/07/2015,11.00,Casual/Essential - General,Automobile Parking Lots and Garages,GPC
Statement Date 18/06/2015 to 17/07/2015,Corporate Resources,ARGOS RETAIL GROUP,02/07/2015,11.99,Other Expenditure - General,Discount Stores,GPC
Statement Date 18/06/2015 to 17/07/2015,Corporate Resources,ASDA STORES 4477,30/06/2015,5.55,Other Expenditure - General,"Grocery Stores, Supermarkets",GPC
Statement Date 18/06/2015 to 17/07/2015,Corporate Resources,ASDA STORES 4477,01/07/2015,4.00,Other Expenditure - General,"Grocery Stores, Supermarkets",GPC
Statement Date 18/06/2015 to 17/07/2015,Corporate Resources,ASDA STORES 4477,08/07/2015,9.49,Other Expenditure - General,"Grocery Stores, Supermarkets",GPC
Statement Date 18/06/2015 to 17/07/2015,Corporate Resources,ASDA STORES 4477,11/07/2015,11.86,Other Expenditure - General,"Grocery Stores, Supermarkets",GPC
Statement Date 18/06/2015 to 17/07/2015,Corporate Resources,ASDA STORES 4477,15/07/2015,3.70,Other Expenditure - General,"Grocery Stores, Supermarkets",GPC
Statement Date 18/06/2015 to 17/07/2015,Corporate Resources,ASDA STORES 4533,24/06/2015,0.89,Other Expenditure - General,"Grocery Stores, Supermarkets",GPC
Statement Date 18/06/2015 to 17/07/2015,Corporate Resources,ASDA STORES 4533,01/07/2015,0.89,Other Expenditure - General,"Grocery Stores, Supermarkets",GPC
Statement Date 18/06/2015 to 17/07/2015,Corporate Resources,ASDA STORES 4533,14/07/2015,0.89,Other Expenditure - General,"Grocery Stores, Supermarkets",GPC
Statement Date 18/06/2015 to 17/07/2015,Corporate Resources,ASDA STORES 4533,08/07/2015,2.00,Other Services - General,"Grocery Stores, Supermarkets",GPC
Statement Date 18/06/2015 to 17/07/2015,Corporate Resources,ASDA STORES 4533,13/07/2015,3.20,Other Services - General,"Grocery Stores, Supermarkets",GPC
Statement Date 18/06/2015 to 17/07/2015,Corporate Resources,ASDA SUPERSTORE,24/06/2015,62.02,Materials - General,"Grocery Stores, Supermarkets",GPC
Statement Date 18/06/2015 to 17/07/2015,Corporate Resources,ASDA SUPERSTORE,08/07/2015,60.00,Materials - General,"Grocery Stores, Supermarkets",GPC
Statement Date 18/06/2015 to 17/07/2015,Corporate Resources,AUTOGRILL CATERING UK MAN,01/07/2015,8.15,Subsistence - General,"Eating Places, Restaurants",GPC
Statement Date 18/06/2015 to 17/07/2015,Corporate Resources,AUTOHOME LTD,10/07/2015,85.50,Other Expenditure - General,Automobile Associations,GPC
Statement Date 18/06/2015 to 17/07/2015,Corporate Resources,B & Q,18/06/2015,20.00,Operational Equipment - General,"Building Materials, Lumber Stores",GPC
Statement Date 18/06/2015 to 17/07/2015,Corporate Resources,BETTYS CAFE TEA ROOMS,29/06/2015,18.50,Subsistence - General,"Eating Places, Restaurants",GPC
Statement Date 18/06/2015 to 17/07/2015,Corporate Resources,BIP SOLUTIONS,23/06/2015,295.00,Training Expenses - General,Business and Secretarial Schools,GPC
Statement Date 18/06/2015 to 17/07/2015,Corporate Resources,BLS PREZI INC,24/06/2015,121.50,IT Equipment - Software,Computer Software Stores,GPC
Statement Date 18/06/2015 to 17/07/2015,Corporate Resources,BONAPARTES,09/07/2015,2.15,Subsistence - General,"Eating Places, Restaurants",GPC
Statement Date 18/06/2015 to 17/07/2015,Corporate Resources,BOOTS/0502,02/07/2015,-1.50,Other Equipment & Materials - General,"Drug Stores, Pharmacies",GPC
Statement Date 18/06/2015 to 17/07/2015,Corporate Resources,CATERLEISURE LIMITED,02/07/2015,11.30,Contract Catering - General,Caterers,GPC
Statement Date 18/06/2015 to 17/07/2015,Corporate Resources,CENTRAL ENG COOP,03/07/2015,9.16,Other Expenditure - Public Enquiry fees,Department Stores,GPC
Statement Date 18/06/2015 to 17/07/2015,Corporate Resources,CENTRAL HALL WESTM,09/07/2015,410.00,Conference - General,"Eating Places, Restaurants",GPC
Statement Date 18/06/2015 to 17/07/2015,Corporate Resources,CENTRAL HALL WESTM,09/07/2015,197.37,Conference - General,"Eating Places, Restaurants",GPC
Statement Date 18/06/2015 to 17/07/2015,Corporate Resources,CITB,29/06/2015,60.00,Training Expenses - General,"Colleges, Universities, Professional Schools, and",GPC
Statement Date 18/06/2015 to 17/07/2015,Corporate Resources,ClickMeeting,17/06/2015,23.41,Other Expenditure - General,Computer Network/Information Services,GPC
Statement Date 18/06/2015 to 17/07/2015,Corporate Resources,ClickMeeting,12/07/2015,23.41,Training Expenses - General,Computer Network/Information Services,GPC
Statement Date 18/06/2015 to 17/07/2015,Corporate Resources,COAST TO COAST,07/07/2015,181.00,Subsistence - General,"Eating Places, Restaurants",GPC
Statement Date 18/06/2015 to 17/07/2015,Corporate Resources,COMMODORE HOTEL,08/07/2015,96.00,Training Expenses - General,"Lodging-Hotels, Motels, Resorts",GPC
Statement Date 18/06/2015 to 17/07/2015,Corporate Resources,COOKS FARM SHOP,01/07/2015,23.10,Other Expenditure - Public Enquiry fees,"Lawn and Garden Supply Stores, Nurseries",GPC
Statement Date 18/06/2015 to 17/07/2015,Corporate Resources,CO-OP GROUP 070412,24/06/2015,17.32,Other Expenditure - General,"Grocery Stores, Supermarkets",GPC
Statement Date 18/06/2015 to 17/07/2015,Corporate Resources,CO-OP GROUP 070412,01/07/2015,11.19,Other Expenditure - General,"Grocery Stores, Supermarkets",GPC
Statement Date 18/06/2015 to 17/07/2015,Corporate Resources,CO-OP LATE SHOP,22/06/2015,9.28,Other Services - General,"Grocery Stores, Supermarkets",GPC
Statement Date 18/06/2015 to 17/07/2015,Corporate Resources,CROSS COUNTRY,23/06/2015,49.80,Training Expenses - General,Passenger Railways,GPC
Statement Date 18/06/2015 to 17/07/2015,Corporate Resources,CROSS COUNTRY,24/06/2015,211.00,Training Expenses - General,Passenger Railways,GPC
Statement Date 18/06/2015 to 17/07/2015,Corporate Resources,CROSS COUNTRY CC,06/07/2015,37.70,Training Expenses - General,Passenger Railways,GPC
Statement Date 18/06/2015 to 17/07/2015,Corporate Resources,CROSS COUNTRY CC,06/07/2015,-366.50,Training Expenses - General,Passenger Railways,GPC
Statement Date 18/06/2015 to 17/07/2015,Corporate Resources,CROSS COUNTRY CC,07/07/2015,319.00,Training Expenses - General,Passenger Railways,GPC
Statement Date 18/06/2015 to 17/07/2015,Corporate Resources,CROSS COUNTRY CC,13/07/2015,133.50,Training Expenses - General,Passenger Railways,GPC
Statement Date 18/06/2015 to 17/07/2015,Corporate Resources,DESTINET LTD,30/06/2015,174.00,Publicity/Marketing - Information Provision,Advertising Services,GPC
Statement Date 18/06/2015 to 17/07/2015,Corporate Resources,DISCLOSURE SCOT,24/06/2015,25.00,Other Expenditure - General,Government Services-Not Elsewhere Classified,GPC
Statement Date 18/06/2015 to 17/07/2015,Corporate Resources,DISCLOSURE SCOT,25/06/2015,25.00,Other Expenditure - General,Government Services-Not Elsewhere Classified,GPC
Statement Date 18/06/2015 to 17/07/2015,Corporate Resources,DISCLOSURE SCOT,26/06/2015,25.00,Other Expenditure - General,Government Services-Not Elsewhere Classified,GPC
Statement Date 18/06/2015 to 17/07/2015,Corporate Resources,EAST MIDLANDS LEICESTER,14/07/2015,7.00,Casual/Essential - General,Automobile Parking Lots and Garages,GPC
Statement Date 18/06/2015 to 17/07/2015,Corporate Resources,EAST MIDLANDS LEICESTER,08/07/2015,26.00,Public Transport -  Staff - General,Automobile Parking Lots and Garages,GPC
Statement Date 18/06/2015 to 17/07/2015,Corporate Resources,EAST MIDLANDS MARKET HAR,01/07/2015,21.00,Casual/Essential - General,Automobile Parking Lots and Garages,GPC
Statement Date 18/06/2015 to 17/07/2015,Corporate Resources,EAST MIDLANDS MARKET HAR,16/06/2015,10.50,Public Transport -  Staff - General,Automobile Parking Lots and Garages,GPC
Statement Date 18/06/2015 to 17/07/2015,Corporate Resources,EAST MIDLANDS MARKET HAR,17/06/2015,10.50,Public Transport -  Staff - General,Automobile Parking Lots and Garages,GPC
Statement Date 18/06/2015 to 17/07/2015,Corporate Resources,EAST MIDLANDS MARKET HAR,19/06/2015,21.00,Public Transport -  Staff - General,Automobile Parking Lots and Garages,GPC
Statement Date 18/06/2015 to 17/07/2015,Corporate Resources,EAST MIDLANDS MARKET HAR,22/06/2015,6.50,Public Transport -  Staff - General,Automobile Parking Lots and Garages,GPC
Statement Date 18/06/2015 to 17/07/2015,Corporate Resources,EAST MIDLANDS MARKET HAR,23/06/2015,21.00,Public Transport -  Staff - General,Automobile Parking Lots and Garages,GPC
Statement Date 18/06/2015 to 17/07/2015,Corporate Resources,EAST MIDLANDS MARKET HAR,23/06/2015,10.50,Public Transport -  Staff - General,Automobile Parking Lots and Garages,GPC
Statement Date 18/06/2015 to 17/07/2015,Corporate Resources,EAST MIDLANDS MARKET HAR,24/06/2015,10.50,Public Transport -  Staff - General,Automobile Parking Lots and Garages,GPC
Statement Date 18/06/2015 to 17/07/2015,Corporate Resources,EAST MIDLANDS MARKET HAR,26/06/2015,10.50,Public Transport -  Staff - General,Automobile Parking Lots and Garages,GPC
Statement Date 18/06/2015 to 17/07/2015,Corporate Resources,EAST MIDLANDS MARKET HAR,26/06/2015,10.50,Public Transport -  Staff - General,Automobile Parking Lots and Garages,GPC
Statement Date 18/06/2015 to 17/07/2015,Corporate Resources,EAST MIDLANDS MARKET HAR,29/06/2015,10.50,Public Transport -  Staff - General,Automobile Parking Lots and Garages,GPC
Statement Date 18/06/2015 to 17/07/2015,Corporate Resources,EAST MIDLANDS MARKET HAR,01/07/2015,10.50,Public Transport -  Staff - General,Automobile Parking Lots and Garages,GPC
Statement Date 18/06/2015 to 17/07/2015,Corporate Resources,EAST MIDLANDS MARKET HAR,06/07/2015,10.50,Public Transport -  Staff - General,Automobile Parking Lots and Garages,GPC
Statement Date 18/06/2015 to 17/07/2015,Corporate Resources,EAST MIDLANDS MARKET HAR,15/07/2015,10.50,Public Transport -  Staff - General,Automobile Parking Lots and Garages,GPC
Statement Date 18/06/2015 to 17/07/2015,Corporate Resources,EASTMIDLANDSTRAINS,02/07/2015,29.40,Public Transport -  Staff - General,Passenger Railways,GPC
Statement Date 18/06/2015 to 17/07/2015,Corporate Resources,EASTMIDLANDSTRAINS,07/07/2015,201.00,Public Transport -  Staff - General,Passenger Railways,GPC
Statement Date 18/06/2015 to 17/07/2015,Corporate Resources,ECLIPSE NETWORKING LIM,23/06/2015,4.02,IT Equipment - General,Continuity/Subscription Merchants,GPC
Statement Date 18/06/2015 to 17/07/2015,Corporate Resources,EPSON-STORE.DE,23/06/2015,47.49,Stationery - General,"Stationery, Office, and School Supply Stores",GPC
Statement Date 18/06/2015 to 17/07/2015,Corporate Resources,ESSO MALTHURST  MEASHAM,08/07/2015,1.09,Other Expenditure - General,Service Stations (with or without Ancillary Servic,GPC
Statement Date 18/06/2015 to 17/07/2015,Corporate Resources,FINE BURGER CO,24/06/2015,10.95,Subsistence - General,"Eating Places, Restaurants",GPC
Statement Date 18/06/2015 to 17/07/2015,Corporate Resources,FIRST/KEOLIS TRANS,02/07/2015,19.20,Casual/Essential - General,Passenger Railways,GPC
Statement Date 18/06/2015 to 17/07/2015,Corporate Resources,FOREIGN EXCHANGE FEE,25/06/2015,3.34,IT Equipment - Software,Misc-Unknown,GPC
Statement Date 18/06/2015 to 17/07/2015,Corporate Resources,FOREIGN EXCHANGE FEE,14/07/2015,2.33,Materials - General,Misc-Unknown,GPC
Statement Date 18/06/2015 to 17/07/2015,Corporate Resources,FOREIGN EXCHANGE FEE,15/07/2015,1.43,Materials - General,Misc-Unknown,GPC
Statement Date 18/06/2015 to 17/07/2015,Corporate Resources,FOREIGN EXCHANGE FEE,07/07/2015,0.74,Publicity/Marketing - Information Provision,Misc-Unknown,GPC
Statement Date 18/06/2015 to 17/07/2015,Corporate Resources,FOREIGN EXCHANGE FEE,13/07/2015,1.05,Subscriptions - General,Misc-Unknown,GPC
Statement Date 18/06/2015 to 17/07/2015,Corporate Resources,FRATELLI DELI CAFE,01/07/2015,3.40,Subsistence - General,"Eating Places, Restaurants",GPC
Statement Date 18/06/2015 to 17/07/2015,Corporate Resources,GANTTIC LLC,11/07/2015,38.25,Subscriptions - General,Miscellaneous and Specialty Retail Stores,GPC
Statement Date 18/06/2015 to 17/07/2015,Corporate Resources,GEORGE WALKER,13/07/2015,83.33,Other Services - General,"Building Materials, Lumber Stores",GPC
Statement Date 18/06/2015 to 17/07/2015,Corporate Resources,GEORGE WALKER,13/07/2015,139.66,Other Services - General,"Building Materials, Lumber Stores",GPC
Statement Date 18/06/2015 to 17/07/2015,Corporate Resources,GOV.UK/DART-CHARGE,10/07/2015,6.00,Casual/Essential - General,"Bridge and Road Fees, Tolls",GPC
Statement Date 18/06/2015 to 17/07/2015,Corporate Resources,H & BBC PAYMENT,10/07/2015,71.54,Premises Insurance - General,Government Services-Not Elsewhere Classified,GPC
Statement Date 18/06/2015 to 17/07/2015,Corporate Resources,HALFORDS 0977,06/07/2015,4.99,Materials - General,Bicycle Shops-Sales and Service,GPC
Statement Date 18/06/2015 to 17/07/2015,Corporate Resources,HARLOW BROS LTD,04/07/2015,40.14,Other Expenditure - General,"Building Materials, Lumber Stores",GPC
Statement Date 18/06/2015 to 17/07/2015,Corporate Resources,HARLOW BROS LTD,01/07/2015,80.00,Other Services - General,"Building Materials, Lumber Stores",GPC
Statement Date 18/06/2015 to 17/07/2015,Corporate Resources,HMCOURTS-SERVICE.G,19/06/2015,210.00,Other Expenditure - General,Fines,GPC
Statement Date 18/06/2015 to 17/07/2015,Corporate Resources,HMCOURTS-SERVICE.G,29/06/2015,210.00,Other Expenditure - General,Fines,GPC
Statement Date 18/06/2015 to 17/07/2015,Corporate Resources,HMCOURTS-SERVICE.G,06/07/2015,210.00,Other Expenditure - General,Fines,GPC
Statement Date 18/06/2015 to 17/07/2015,Corporate Resources,HMCOURTS-SERVICE.G,15/07/2015,210.00,Other Expenditure - General,Fines,GPC
Statement Date 18/06/2015 to 17/07/2015,Corporate Resources,HOLIDAY INN PRESTON FE,24/06/2015,75.60,Training Expenses - General,Holiday Inns,GPC
Statement Date 18/06/2015 to 17/07/2015,Corporate Resources,HOLIDAY INN PRESTON FE,08/07/2015,78.48,Training Expenses - General,Holiday Inns,GPC
Statement Date 18/06/2015 to 17/07/2015,Corporate Resources,HOOTSUITE MEDIA INC.,06/07/2015,27.07,Publicity/Marketing - Information Provision,Business Services-Not Elsewhere Classified,GPC
Statement Date 18/06/2015 to 17/07/2015,Corporate Resources,Hotel im Spessart,13/07/2015,84.56,Other Transport Costs - General,"Lodging-Hotels, Motels, Resorts",GPC
Statement Date 18/06/2015 to 17/07/2015,Corporate Resources,HTTP://ACE.APPRENTICES,06/07/2015,22.00,Training Expenses - General,"Management, Consulting and Public Relations Servic",GPC
Statement Date 18/06/2015 to 17/07/2015,Corporate Resources,HTTP://ACE.APPRENTICES,15/07/2015,22.00,Training Expenses - General,"Management, Consulting and Public Relations Servic",GPC
Statement Date 18/06/2015 to 17/07/2015,Corporate Resources,IMAGIN PRODUCTS LTD,23/06/2015,18.20,Protective Clothing & Uniforms - General,"Gift, Card, Novelty, and Souvenir Shops",GPC
Statement Date 18/06/2015 to 17/07/2015,Corporate Resources,L F JOLLYE LTD,14/07/2015,10.12,Other Services - General,Pet Shops-Pet Food and Supplies,GPC
Statement Date 18/06/2015 to 17/07/2015,Corporate Resources,LE FEVRES STORES,11/07/2015,5.66,Other Expenditure - General,"Grocery Stores, Supermarkets",GPC
Statement Date 18/06/2015 to 17/07/2015,Corporate Resources,LE FEVRES STORES,14/07/2015,10.00,Other Services - General,"Grocery Stores, Supermarkets",GPC
Statement Date 18/06/2015 to 17/07/2015,Corporate Resources,LEITH'S AT EXCEL L,23/06/2015,7.55,Subsistence - General,"Eating Places, Restaurants",GPC
Statement Date 18/06/2015 to 17/07/2015,Corporate Resources,LINKEDIN-284 2999343,23/06/2015,227.94,Other Expenditure - General,Continuity/Subscription Merchants,GPC
Statement Date 18/06/2015 to 17/07/2015,Corporate Resources,LINKEDIN-287 9079933,03/07/2015,227.94,Other Expenditure - General,Continuity/Subscription Merchants,GPC
Statement Date 18/06/2015 to 17/07/2015,Corporate Resources,LINKEDIN-2877839463,03/07/2015,227.94,Other Expenditure - General,Continuity/Subscription Merchants,GPC
Statement Date 18/06/2015 to 17/07/2015,Corporate Resources,LINKEDIN-290 0799523,10/07/2015,227.94,Other Expenditure - General,Continuity/Subscription Merchants,GPC
Statement Date 18/06/2015 to 17/07/2015,Corporate Resources,LUL TICKET MACHINE,22/06/2015,10.00,Casual/Essential - General,Passenger Railways,GPC
Statement Date 18/06/2015 to 17/07/2015,Corporate Resources,LUL TICKET MACHINE,22/06/2015,30.00,Casual/Essential - General,Passenger Railways,GPC
Statement Date 18/06/2015 to 17/07/2015,Corporate Resources,LUL TICKET MACHINE,17/06/2015,50.00,Public Transport -  Staff - General,Passenger Railways,GPC
Statement Date 18/06/2015 to 17/07/2015,Corporate Resources,LUL TICKET MACHINE,01/07/2015,10.00,Public Transport -  Staff - General,Passenger Railways,GPC
Statement Date 18/06/2015 to 17/07/2015,Corporate Resources,LUL TICKET MACHINE,06/07/2015,30.00,Public Transport -  Staff - General,Passenger Railways,GPC
Statement Date 18/06/2015 to 17/07/2015,Corporate Resources,M M LEGGETT VET. SURGE,15/07/2015,54.25,Other Expenditure - Public Enquiry fees,Veterinary Services,GPC
Statement Date 18/06/2015 to 17/07/2015,Corporate Resources,MOLE COUNTRY STORES,03/07/2015,14.98,Materials - General,Agricultural Cooperatives,GPC
Statement Date 18/06/2015 to 17/07/2015,Corporate Resources,MOLE COUNTRY STORES,03/07/2015,74.90,Other Expenditure - Public Enquiry fees,Agricultural Cooperatives,GPC
Statement Date 18/06/2015 to 17/07/2015,Corporate Resources,MOLE COUNTRY STORES,03/07/2015,38.02,Other Expenditure - Public Enquiry fees,Agricultural Cooperatives,GPC
Statement Date 18/06/2015 to 17/07/2015,Corporate Resources,NETWORK FOR BLACK,10/07/2015,550.00,Training Expenses - General,Schools and Educational Services-Not Elsewhere Cla,GPC
Statement Date 18/06/2015 to 17/07/2015,Corporate Resources,NORWICH AIRPORT ADF 1,02/07/2015,10.00,Casual/Essential - General,Travel Agencies,GPC
Statement Date 18/06/2015 to 17/07/2015,Corporate Resources,NOVOTEL MANCHESTER CENTRE,19/06/2015,10.00,Subsistence - General,"Lodging-Hotels, Motels, Resorts",GPC
Statement Date 18/06/2015 to 17/07/2015,Corporate Resources,OYSTER RENEW WEB,01/07/2015,50.00,Public Transport -  Staff - General,Passenger Railways,GPC
Statement Date 18/06/2015 to 17/07/2015,Corporate Resources,OYSTER RENEW WEB,14/07/2015,30.00,Public Transport -  Staff - General,Passenger Railways,GPC
Statement Date 18/06/2015 to 17/07/2015,Corporate Resources,PAYPAL  DANSLEEC2LT,02/07/2015,195.00,Other Expenditure - General,Direct Marketers - Other,GPC
Statement Date 18/06/2015 to 17/07/2015,Corporate Resources,PAYPAL  RORY,23/06/2015,103.50,Materials - General,Miscellaneous and Specialty Retail Stores,GPC
Statement Date 18/06/2015 to 17/07/2015,Corporate Resources,PAYPAL  ROSPA,26/06/2015,55.00,Training Expenses - General,Charitable and Social Service Organizations,GPC
Statement Date 18/06/2015 to 17/07/2015,Corporate Resources,PEPENERO,24/06/2015,12.15,Subsistence - General,"Eating Places, Restaurants",GPC
Statement Date 18/06/2015 to 17/07/2015,Corporate Resources,PEPPERCORN CATERING,24/06/2015,63.40,Hospitality - General,"Eating Places, Restaurants",GPC
Statement Date 18/06/2015 to 17/07/2015,Corporate Resources,PIZZA HUT 203,18/06/2015,10.75,Subsistence - General,"Eating Places, Restaurants",GPC
Statement Date 18/06/2015 to 17/07/2015,Corporate Resources,POST OFFICE COUNTER,23/06/2015,8.82,Postal Services - General,Postage Stamps,GPC
Statement Date 18/06/2015 to 17/07/2015,Corporate Resources,PREMIER INN44521260,21/06/2015,41.60,Subsistence - General,PREMIER TRAVEL,GPC
Statement Date 18/06/2015 to 17/07/2015,Corporate Resources,PREMIER INN44521260,21/06/2015,52.00,Subsistence - General,PREMIER TRAVEL,GPC
Statement Date 18/06/2015 to 17/07/2015,Corporate Resources,PREMIER INN44521260,21/06/2015,52.00,Subsistence - General,PREMIER TRAVEL,GPC
Statement Date 18/06/2015 to 17/07/2015,Corporate Resources,PREMIER INN44521260,21/06/2015,52.00,Subsistence - General,PREMIER TRAVEL,GPC
Statement Date 18/06/2015 to 17/07/2015,Corporate Resources,PREMIER INN44521260,15/07/2015,68.96,Training Expenses - General,PREMIER TRAVEL,GPC
Statement Date 18/06/2015 to 17/07/2015,Corporate Resources,PREMIER INN44521815,02/07/2015,4.00,Subsistence - General,PREMIER TRAVEL,GPC
Statement Date 18/06/2015 to 17/07/2015,Corporate Resources,PUGH AND SON,04/07/2015,38.00,Other Expenditure - General,Miscellaneous and Specialty Retail Stores,GPC
Statement Date 18/06/2015 to 17/07/2015,Corporate Resources,QUORN GRANGE HOTEL,23/06/2015,64.00,Other Equipment & Materials - General,"Lodging-Hotels, Motels, Resorts",GPC
Statement Date 18/06/2015 to 17/07/2015,Corporate Resources,QUORN GRANGE HOTEL,27/06/2015,94.00,Other Equipment & Materials - General,"Lodging-Hotels, Motels, Resorts",GPC
Statement Date 18/06/2015 to 17/07/2015,Corporate Resources,QUORN GRANGE HOTEL,17/06/2015,70.00,Training Expenses - General,"Lodging-Hotels, Motels, Resorts",GPC
Statement Date 18/06/2015 to 17/07/2015,Corporate Resources,QUORN GRANGE HOTEL,01/07/2015,158.00,Training Expenses - General,"Lodging-Hotels, Motels, Resorts",GPC
Statement Date 18/06/2015 to 17/07/2015,Corporate Resources,QUORN GRANGE HOTEL,10/07/2015,70.00,Training Expenses - General,"Lodging-Hotels, Motels, Resorts",GPC
Statement Date 18/06/2015 to 17/07/2015,Corporate Resources,RAMADA HOTELS & SUITES,23/06/2015,13.45,Subsistence - General,COMFORT HOTEL INTERNATIONAL,GPC
Statement Date 18/06/2015 to 17/07/2015,Corporate Resources,RITAZZA 2,29/06/2015,5.10,Subsistence - General,Fast-Food Restaurants (Quick Payment Service Pilot,GPC
Statement Date 18/06/2015 to 17/07/2015,Corporate Resources,ROLL FOR THE SOUL - CA,08/07/2015,5.00,Subsistence - General,Fast-Food Restaurants (Quick Payment Service Pilot,GPC
Statement Date 18/06/2015 to 17/07/2015,Corporate Resources,ROLL FOR THE SOUL - CA,08/07/2015,7.00,Subsistence - General,Fast-Food Restaurants (Quick Payment Service Pilot,GPC
Statement Date 18/06/2015 to 17/07/2015,Corporate Resources,SACAT MARKS & SPENCER,01/07/2015,7.20,Subsistence - General,"Grocery Stores, Supermarkets",GPC
Statement Date 18/06/2015 to 17/07/2015,Corporate Resources,SAINSBURYS S/MKTS,26/06/2015,9.00,Materials - General,"Grocery Stores, Supermarkets",GPC
Statement Date 18/06/2015 to 17/07/2015,Corporate Resources,SAINSBURYS S/MKTS,07/07/2015,78.60,Materials - General,"Grocery Stores, Supermarkets",GPC
Statement Date 18/06/2015 to 17/07/2015,Corporate Resources,SAINSBURYS S/MKTS,15/07/2015,6.35,Materials - General,"Grocery Stores, Supermarkets",GPC
Statement Date 18/06/2015 to 17/07/2015,Corporate Resources,SCREWFIX,02/07/2015,39.99,Other Expenditure - General,"Building Materials, Lumber Stores",GPC
Statement Date 18/06/2015 to 17/07/2015,Corporate Resources,SEYMOUR HOTELS LTD,07/07/2015,65.00,Training Expenses - General,"Lodging-Hotels, Motels, Resorts",GPC
Statement Date 18/06/2015 to 17/07/2015,Corporate Resources,SEYMOUR HOTELS LTD,09/07/2015,211.20,Training Expenses - General,"Lodging-Hotels, Motels, Resorts",GPC
Statement Date 18/06/2015 to 17/07/2015,Corporate Resources,Shell Ashby,11/07/2015,4.99,Other Services - General,Service Stations (with or without Ancillary Servic,GPC
Statement Date 18/06/2015 to 17/07/2015,Corporate Resources,SLB SUPPLIES LTD,23/06/2015,27.00,Other Services - General,Pet Shops-Pet Food and Supplies,GPC
Statement Date 18/06/2015 to 17/07/2015,Corporate Resources,STAPLES UK,20/06/2015,87.77,Stationery - General,"Stationery, Office, and School Supply Stores",GPC
Statement Date 18/06/2015 to 17/07/2015,Corporate Resources,STAPLES UK,28/06/2015,19.99,Stationery - General,"Stationery, Office, and School Supply Stores",GPC
Statement Date 18/06/2015 to 17/07/2015,Corporate Resources,SUKHOTHAI,29/06/2015,18.00,Subsistence - General,"Eating Places, Restaurants",GPC
Statement Date 18/06/2015 to 17/07/2015,Corporate Resources,SUKHOTHAI,30/06/2015,20.00,Subsistence - General,"Eating Places, Restaurants",GPC
Statement Date 18/06/2015 to 17/07/2015,Corporate Resources,SUKHOTHAI,01/07/2015,8.95,Subsistence - General,"Eating Places, Restaurants",GPC
Statement Date 18/06/2015 to 17/07/2015,Corporate Resources,SUKHOTHAI,01/07/2015,8.35,Subsistence - General,"Eating Places, Restaurants",GPC
Statement Date 18/06/2015 to 17/07/2015,Corporate Resources,TESCO STORE 2846,17/06/2015,14.00,Materials - General,"Grocery Stores, Supermarkets",GPC
Statement Date 18/06/2015 to 17/07/2015,Corporate Resources,TESCO STORE 2886,24/06/2015,33.00,Materials - General,"Grocery Stores, Supermarkets",GPC
Statement Date 18/06/2015 to 17/07/2015,Corporate Resources,TESCO STORES 2849,27/06/2015,8.70,Other Services - General,"Grocery Stores, Supermarkets",GPC
Statement Date 18/06/2015 to 17/07/2015,Corporate Resources,TESCO STORES 5458,03/07/2015,39.00,Subsistence - General,"Grocery Stores, Supermarkets",GPC
Statement Date 18/06/2015 to 17/07/2015,Corporate Resources,TESCO STORES 5887,29/06/2015,8.31,Subsistence - General,"Grocery Stores, Supermarkets",GPC
Statement Date 18/06/2015 to 17/07/2015,Corporate Resources,TESCO STORES 5887,30/06/2015,26.10,Subsistence - General,"Grocery Stores, Supermarkets",GPC
Statement Date 18/06/2015 to 17/07/2015,Corporate Resources,TESCO STORES 5887,01/07/2015,2.88,Subsistence - General,"Grocery Stores, Supermarkets",GPC
Statement Date 18/06/2015 to 17/07/2015,Corporate Resources,TESCO STORES 6725,23/06/2015,11.49,Materials - General,"Grocery Stores, Supermarkets",GPC
Statement Date 18/06/2015 to 17/07/2015,Corporate Resources,TEX 320141 GROOT BIJG,13/07/2015,51.98,Petrol/Oil/Tyres/Spares - General,Service Stations (with or without Ancillary Servic,GPC
Statement Date 18/06/2015 to 17/07/2015,Corporate Resources,TFGM METROLINK,03/07/2015,2.80,Casual/Essential - General,"Bus Lines, Charters, Tour Buses",GPC
Statement Date 18/06/2015 to 17/07/2015,Corporate Resources,TFGM METROLINK,03/07/2015,3.90,Casual/Essential - General,"Bus Lines, Charters, Tour Buses",GPC
Statement Date 18/06/2015 to 17/07/2015,Corporate Resources,TFGM METROLINK,18/06/2015,3.10,Public Transport -  Staff - General,"Bus Lines, Charters, Tour Buses",GPC
Statement Date 18/06/2015 to 17/07/2015,Corporate Resources,TFGM METROLINK,19/06/2015,3.10,Public Transport -  Staff - General,"Bus Lines, Charters, Tour Buses",GPC
Statement Date 18/06/2015 to 17/07/2015,Corporate Resources,THE CURIOUS PIG,25/06/2015,7.80,Subsistence - General,"Eating Places, Restaurants",GPC
Statement Date 18/06/2015 to 17/07/2015,Corporate Resources,THE TRAINLINE.CO,01/07/2015,10.91,Public Transport -  Staff - General,Passenger Railways,GPC
Statement Date 18/06/2015 to 17/07/2015,Corporate Resources,TRADING STANDARDS INST,19/06/2015,69.00,Training Expenses - General,CombinationMail/Phones and Retail Merchants,GPC
Statement Date 18/06/2015 to 17/07/2015,Corporate Resources,TRAILER-TEK,02/07/2015,7.70,Other Services - General,"Recreational and Utility Trailers, Camper Dealers",GPC
Statement Date 18/06/2015 to 17/07/2015,Corporate Resources,TRAINLINE.COM,05/07/2015,36.52,Casual/Essential - General,Passenger Railways,GPC
Statement Date 18/06/2015 to 17/07/2015,Corporate Resources,TRAINLINE.COM,18/06/2015,103.24,Public Transport -  Staff - General,Passenger Railways,GPC
Statement Date 18/06/2015 to 17/07/2015,Corporate Resources,UNIVERSITY OF BIRMINGH,29/06/2015,100.00,Training Expenses - General,"Colleges, Universities, Professional Schools, and",GPC
Statement Date 18/06/2015 to 17/07/2015,Corporate Resources,UPS LTD,07/07/2015,26.51,Other Expenditure - General,"Courier Services-Air and Ground, and Freight Forw",GPC
Statement Date 18/06/2015 to 17/07/2015,Corporate Resources,UPT - EMT NOTTINGHAM RAI,06/07/2015,7.00,Public Transport -  Staff - General,Professional Services-Not Elsewhere Classified,GPC
Statement Date 18/06/2015 to 17/07/2015,Corporate Resources,VUE NCS CITB HS&E TEST,02/07/2015,17.50,Training Expenses - General,Schools and Educational Services-Not Elsewhere Cla,GPC
Statement Date 18/06/2015 to 17/07/2015,Corporate Resources,WEST COAST TRAINS,10/07/2015,34.00,Casual/Essential - General,Automobile Parking Lots and Garages,GPC
Statement Date 18/06/2015 to 17/07/2015,Corporate Resources,WEST COAST TRAINS,03/07/2015,12.70,Public Transport -  Staff - General,Passenger Railways,GPC
Statement Date 18/06/2015 to 17/07/2015,Corporate Resources,WESTMINSTER FORUM,10/07/2015,42.00,Schools Agency staff - Teaching Staff,"Management, Consulting and Public Relations Servic",GPC
Statement Date 18/06/2015 to 17/07/2015,Corporate Resources,WH SMITH,09/07/2015,5.28,Newspapers & Periodicals - General,News Dealers and Newsstands,GPC
Statement Date 18/06/2015 to 17/07/2015,Corporate Resources,WICKES,29/06/2015,94.95,Other Expenditure - General,"Building Materials, Lumber Stores",GPC
Statement Date 18/06/2015 to 17/07/2015,Corporate Resources,WICKES,25/06/2015,38.70,Other Services - General,"Building Materials, Lumber Stores",GPC
Statement Date 18/06/2015 to 17/07/2015,Corporate Resources,WICKES,25/06/2015,14.97,Other Services - General,"Building Materials, Lumber Stores",GPC
Statement Date 18/06/2015 to 17/07/2015,Corporate Resources,WILKO RETAIL LIMIT,17/06/2015,13.20,Materials - General,Household Appliance Stores,GPC
Statement Date 18/06/2015 to 17/07/2015,Corporate Resources,WILKO RETAIL LIMIT,30/06/2015,42.56,Other Services - General,Household Appliance Stores,GPC
Statement Date 18/06/2015 to 17/07/2015,Corporate Resources,WM MORRISON 054,19/06/2015,7.52,Other Expenditure - General,"Grocery Stores, Supermarkets",GPC
Statement Date 18/06/2015 to 17/07/2015,Corporate Resources,WWW.BIPSOLUTIONS.COM,06/07/2015,136.50,Training Expenses - General,Business and Secretarial Schools,GPC
Statement Date 18/06/2015 to 17/07/2015,Corporate Resources,WWW.BIPSOLUTIONS.COM,06/07/2015,206.50,Training Expenses - General,Business and Secretarial Schools,GPC
Statement Date 18/06/2015 to 17/07/2015,Corporate Resources,WWW.COMMIDEA.COM,26/06/2015,71.97,IT Equipment - General,Computer and Data Processing Services,GPC
Statement Date 18/06/2015 to 17/07/2015,Corporate Resources,WWW.DVLA.GOV.UK,24/06/2015,227.50,Road Licences - General,Government Services-Not Elsewhere Classified,GPC
Statement Date 18/06/2015 to 17/07/2015,Corporate Resources,WWW.PARTYPLASTICSONLIN,22/06/2015,38.15,Materials - General,Miscellaneous and Specialty Retail Stores,GPC
Statement Date 18/06/2015 to 17/07/2015,Corporate Resources,WWW.SALADSEMINARS.COM,08/07/2015,89.73,Training Expenses - General,Schools and Educational Services-Not Elsewhere Cla,GPC
Statement Date 18/06/2015 to 17/07/2015,Corporate Resources,WWW.STONEWALL.ORG.,09/07/2015,175.00,Training Expenses - General,Charitable and Social Service Organizations,GPC
Statement Date 18/06/2015 to 17/07/2015,Corporate Resources,YELLOWS DINER,01/07/2015,30.90,Subsistence - General,"Eating Places, Restaurants",GPC
Statement Date 18/06/2015 to 17/07/2015,Corporate Resources,YI-BAN RESTAURANT,22/06/2015,14.60,Subsistence - General,Fast-Food Restaurants (Quick Payment Service Pilot,GPC
Statement Date 18/06/2015 to 17/07/2015,E&T,Amazon Svcs Europe SAR,17/06/2015,7.47,Books - General,Book Stores,GPC
Statement Date 18/06/2015 to 17/07/2015,E&T,Amazon Svcs Europe SAR,17/06/2015,10.58,Books - General,Book Stores,GPC
Statement Date 18/06/2015 to 17/07/2015,E&T,Amazon Svcs Europe SAR,19/06/2015,1.89,Books - General,Book Stores,GPC
Statement Date 18/06/2015 to 17/07/2015,E&T,Amazon Svcs Europe SAR,22/06/2015,-213.28,Other Equipment & Materials - General,Book Stores,GPC
Statement Date 18/06/2015 to 17/07/2015,E&T,Amazon UK Marketplace,25/06/2015,141.21,Books - General,Book Stores,GPC
Statement Date 18/06/2015 to 17/07/2015,E&T,Amazon UK Marketplace,17/06/2015,3.84,Materials - General,Miscellaneous and Specialty Retail Stores,GPC
Statement Date 18/06/2015 to 17/07/2015,E&T,Amazon UK Marketplace,18/06/2015,290.97,Materials - General,Miscellaneous and Specialty Retail Stores,GPC
Statement Date 18/06/2015 to 17/07/2015,E&T,Amazon UK Marketplace,19/06/2015,14.57,Materials - General,Miscellaneous and Specialty Retail Stores,GPC
Statement Date 18/06/2015 to 17/07/2015,E&T,Amazon UK Marketplace,19/06/2015,13.03,Materials - General,Miscellaneous and Specialty Retail Stores,GPC
Statement Date 18/06/2015 to 17/07/2015,E&T,Amazon UK Marketplace,06/07/2015,20.00,Materials - General,Miscellaneous and Specialty Retail Stores,GPC
Statement Date 18/06/2015 to 17/07/2015,E&T,Amazon UK Marketplace,14/07/2015,9.08,Other Equipment & Materials - General,Book Stores,GPC
Statement Date 18/06/2015 to 17/07/2015,E&T,Amazon UK Marketplace,14/07/2015,33.46,Other Equipment & Materials - General,Miscellaneous and Specialty Retail Stores,GPC
Statement Date 18/06/2015 to 17/07/2015,E&T,Amazon UK Retail,18/06/2015,44.31,Other Expenditure - General,Direct Marketers - Other,GPC
Statement Date 18/06/2015 to 17/07/2015,E&T,Amazon UK Retail,06/07/2015,9.99,Other Expenditure - General,Direct Marketers - Other,GPC
Statement Date 18/06/2015 to 17/07/2015,E&T,Amazon UK Retail,06/07/2015,9.99,Other Expenditure - General,Direct Marketers - Other,GPC
Statement Date 18/06/2015 to 17/07/2015,E&T,Amazon UK Retail,08/07/2015,86.00,Other Expenditure - General,Direct Marketers - Other,GPC
Statement Date 18/06/2015 to 17/07/2015,E&T,Amazon UK Retail,11/07/2015,13.03,Other Expenditure - General,Direct Marketers - Other,GPC
Statement Date 18/06/2015 to 17/07/2015,E&T,Amazon UK Retail,11/07/2015,13.02,Other Expenditure - General,Direct Marketers - Other,GPC
Statement Date 18/06/2015 to 17/07/2015,E&T,Amazon UK Retail,11/07/2015,13.03,Other Expenditure - General,Direct Marketers - Other,GPC
Statement Date 18/06/2015 to 17/07/2015,E&T,Amazon UK Retail,12/07/2015,4.39,Other Expenditure - General,Direct Marketers - Other,GPC
Statement Date 18/06/2015 to 17/07/2015,E&T,Amazon UK Retail,12/07/2015,72.36,Other Expenditure - General,Direct Marketers - Other,GPC
Statement Date 18/06/2015 to 17/07/2015,E&T,Amazon UK Retail,15/07/2015,104.55,Other Expenditure - General,Direct Marketers - Other,GPC
Statement Date 18/06/2015 to 17/07/2015,E&T,B & Q,25/06/2015,10.07,Other Services - General,"Building Materials, Lumber Stores",GPC
Statement Date 18/06/2015 to 17/07/2015,E&T,BARRINGTON,14/07/2015,512.48,Other Expenditure - General,Computer Software Stores,GPC
Statement Date 18/06/2015 to 17/07/2015,E&T,CRELLING HARNESSES LTD,14/07/2015,102.80,S.E.N. Taxi Hire - Home to School,Miscellaneous and Specialty Retail Stores,GPC
Statement Date 18/06/2015 to 17/07/2015,E&T,EA HAZARDOUS WASTE-DOM,08/07/2015,18.00,Other Expenditure - General,Government Services-Not Elsewhere Classified,GPC
Statement Date 18/06/2015 to 17/07/2015,E&T,EAST MIDLANDS LEICESTER,29/06/2015,7.00,Casual/Essential - General,Automobile Parking Lots and Garages,GPC
Statement Date 18/06/2015 to 17/07/2015,E&T,EAST MIDLANDS LEICESTER,01/07/2015,13.00,Casual/Essential - General,Automobile Parking Lots and Garages,GPC
Statement Date 18/06/2015 to 17/07/2015,E&T,EAST MIDLANDS LEICESTER,10/07/2015,13.00,Casual/Essential - General,Automobile Parking Lots and Garages,GPC
Statement Date 18/06/2015 to 17/07/2015,E&T,EASTMIDLANDSTRAINS,25/06/2015,155.50,Casual/Essential - General,Passenger Railways,GPC
Statement Date 18/06/2015 to 17/07/2015,E&T,EASTMIDLANDSTRAINS,01/07/2015,192.00,Casual/Essential - General,Passenger Railways,GPC
Statement Date 18/06/2015 to 17/07/2015,E&T,EASTMIDLANDSTRAINS,19/06/2015,162.50,Public Transport -  Staff - General,Passenger Railways,GPC
Statement Date 18/06/2015 to 17/07/2015,E&T,EASTMIDLANDSTRAINS,25/06/2015,168.50,Public Transport -  Staff - General,Passenger Railways,GPC
Statement Date 18/06/2015 to 17/07/2015,E&T,EASTMIDLANDSTRAINS,07/07/2015,167.50,Public Transport -  Staff - General,Passenger Railways,GPC
Statement Date 18/06/2015 to 17/07/2015,E&T,EASTMIDLANDSTRAINS,09/07/2015,44.00,Public Transport -  Staff - General,Passenger Railways,GPC
Statement Date 18/06/2015 to 17/07/2015,E&T,EBUYER (UK) LTD,17/06/2015,54.17,General Equipment - General,Household Appliance Stores,GPC
Statement Date 18/06/2015 to 17/07/2015,E&T,MILL ON THE SOAR,02/07/2015,104.91,Hospitality - General,"Drinking Places (Alcoholic Beverages)-Bars, Tavern",GPC
Statement Date 18/06/2015 to 17/07/2015,E&T,STATIONERY OFFICE BOOK,22/06/2015,168.60,Other Expenditure - General,Catalog Merchants,GPC
Statement Date 18/06/2015 to 17/07/2015,E&T,TRAINLINE.COM,30/06/2015,161.16,Casual/Essential - General,Passenger Railways,GPC
Statement Date 18/06/2015 to 17/07/2015,E&T,TRAINLINE.COM,07/07/2015,161.16,Casual/Essential - General,Passenger Railways,GPC
Statement Date 18/06/2015 to 17/07/2015,E&T,TRAINLINE.COM,22/06/2015,129.03,Training Expenses - General,Passenger Railways,GPC
Statement Date 18/06/2015 to 17/07/2015,E&T,TRAINLINE.COM,24/06/2015,136.68,Training Expenses - General,Passenger Railways,GPC
Statement Date 18/06/2015 to 17/07/2015,E&T,TRAINLINE.COM,03/07/2015,-12.00,Training Expenses - General,Passenger Railways,GPC
Statement Date 18/06/2015 to 17/07/2015,E&T,WESTMINSTER FORUM,10/07/2015,210.00,Training Expenses - General,"Management, Consulting and Public Relations Servic",GPC
Statement Date 18/06/2015 to 17/07/2015,E&T,WWW.DVLA.GOV.UK,18/06/2015,227.50,Road Licences - General,Government Services-Not Elsewhere Classified,GPC
Statement Date 18/06/2015 to 17/07/2015,E&T,WWW.DVLA.GOV.UK,23/06/2015,227.50,Road Licences - General,Government Services-Not Elsewhere Classified,GPC
Statement Date 18/06/2015 to 17/07/2015,E&T,WWW.DVLA.GOV.UK,06/07/2015,202.50,Road Licences - General,Government Services-Not Elsewhere Classified,GPC
Statement Date 18/06/2015 to 17/07/2015,E&T,WWW.DVLA.GOV.UK,08/07/2015,167.50,Road Licences - General,Government Services-Not Elsewhere Classified,GPC
Statement Date 18/06/2015 to 17/07/2015,E&T,WWW.DVLA.GOV.UK,09/07/2015,167.50,Road Licences - General,Government Services-Not Elsewhere Classified,GPC
Statement Date 18/06/2015 to 17/07/2015,E&T,WWW.DVLA.GOV.UK,09/07/2015,167.50,Road Licences - General,Government Services-Not Elsewhere Classified,GPC
Statement Date 18/06/2015 to 17/07/2015,E&T,WWW.DVLA.GOV.UK,09/07/2015,167.50,Road Licences - General,Government Services-Not Elsewhere Classified,GPC
Statement Date 18/06/2015 to 17/07/2015,E&T,WWW.DVLA.GOV.UK,09/07/2015,167.50,Road Licences - General,Government Services-Not Elsewhere Classified,GPC
Statement Date 18/06/2015 to 17/07/2015,E&T,WWW.DVLA.GOV.UK,09/07/2015,167.50,Road Licences - General,Government Services-Not Elsewhere Classified,GPC
Statement Date 18/06/2015 to 17/07/2015,E&T,WWW.DVLA.GOV.UK,09/07/2015,167.50,Road Licences - General,Government Services-Not Elsewhere Classified,GPC
Statement Date 18/06/2015 to 17/07/2015,E&T,WWW.DVLA.GOV.UK,09/07/2015,167.50,Road Licences - General,Government Services-Not Elsewhere Classified,GPC
Statement Date 18/06/2015 to 17/07/2015,E&T,WWW.DVLA.GOV.UK,09/07/2015,167.50,Road Licences - General,Government Services-Not Elsewhere Classified,GPC
Statement Date 18/06/2015 to 17/07/2015,E&T,WWW.DVLA.GOV.UK,09/07/2015,167.50,Road Licences - General,Government Services-Not Elsewhere Classified,GPC
Statement Date 18/06/2015 to 17/07/2015,E&T,WWW.DVLA.GOV.UK,09/07/2015,167.50,Road Licences - General,Government Services-Not Elsewhere Classified,GPC
Statement Date 18/06/2015 to 17/07/2015,E&T,WWW.DVLA.GOV.UK,09/07/2015,167.50,Road Licences - General,Government Services-Not Elsewhere Classified,GPC
Statement Date 18/06/2015 to 17/07/2015,E&T,WWW.DVLA.GOV.UK,09/07/2015,167.50,Road Licences - General,Government Services-Not Elsewhere Classified,GPC
Statement Date 18/06/2015 to 17/07/2015,E&T,WWW.DVLA.GOV.UK,13/07/2015,167.50,Road Licences - General,Government Services-Not Elsewhere Classified,GPC
Statement Date 18/06/2015 to 17/07/2015,E&T,WWW.THETAPESTORE.CO.UK,17/06/2015,419.95,Other Equipment & Materials - General,Miscellaneous and Specialty Retail Stores,GPC
Statement Date 18/06/2015 to 17/07/2015,E&T,WWW.THETAPESTORE.CO.UK,16/07/2015,104.99,Other Equipment & Materials - General,Miscellaneous and Specialty Retail Stores,GPC
Statement Date 18/06/2015 to 17/07/2015,E&T,WWW.VOUCHEREXPRESS.CO.,09/07/2015,51.50,Materials - General,"Gift, Card, Novelty, and Souvenir Shops",GPC
Statement Date 18/06/2015 to 17/07/2015,E&T,YMLP.COM,07/07/2015,113.52,Materials - General,Computer and Data Processing Services,GPC
Statement Date 18/06/2015 to 17/07/2015,Leicestershire Highways,CARTRIDGESAVE.CO.UK,24/06/2015,140.85,Materials - General,"Stationery, Office, and School Supply Stores",GPC
Statement Date 18/06/2015 to 17/07/2015,Leicestershire Highways,WWW.DVLA.GOV.UK,23/06/2015,652.50,Road Licences - General,Government Services-Not Elsewhere Classified,GPC
Statement Date 18/06/2015 to 17/07/2015,Leicestershire Highways,WWW.DVLA.GOV.UK,09/07/2015,227.50,Road Licences - General,Government Services-Not Elsewhere Classified,GPC
Statement Date 18/06/2015 to 17/07/2015,Leicestershire Highways,WWW.DVLA.GOV.UK,09/07/2015,227.50,Road Licences - General,Government Services-Not Elsewhere Classified,GPC
Statement Date 18/06/2015 to 17/07/2015,Leicestershire Highways,WWW.DVLA.GOV.UK,09/07/2015,167.50,Road Licences - General,Government Services-Not Elsewhere Classified,GPC
Statement Date 18/06/2015 to 17/07/2015,Leicestershire Highways,WWW.DVLA.GOV.UK,09/07/2015,227.50,Road Licences - General,Government Services-Not Elsewhere Classified,GPC
Statement Date 18/06/2015 to 17/07/2015,Leicestershire Highways,WWW.DVLA.GOV.UK,09/07/2015,227.50,Road Licences - General,Government Services-Not Elsewhere Classified,GPC
Statement Date 18/06/2015 to 17/07/2015,Leicestershire Highways,WWW.DVLA.GOV.UK,09/07/2015,227.50,Road Licences - General,Government Services-Not Elsewhere Classified,GPC
Statement Date 18/06/2015 to 17/07/2015,Leicestershire Highways,WWW.DVLA.GOV.UK,09/07/2015,227.50,Road Licences - General,Government Services-Not Elsewhere Classified,GPC
Statement Date 18/06/2015 to 17/07/2015,Leicestershire Highways,WWW.DVLA.GOV.UK,09/07/2015,227.50,Road Licences - General,Government Services-Not Elsewhere Classified,GPC
Statement Date 18/06/2015 to 17/07/2015,Public Health,FACEBOOK SAETM7AX32,30/06/2015,19.82,Publicity/Marketing - General,Advertising Services,GPC
Statement Date 18/06/2015 to 17/07/2015,Public Health,HANCOCK CASH & CARRY,16/07/2015,105.81,Contract Catering - General,Nondurable Goods Not Elsewhere Classified,GPC
Statement Date 18/06/2015 to 17/07/2015,Public Health,MAPLIN-206-LOUGHBOROUGH,08/07/2015,54.16,IT Equipment - Purchase - Hardware,"RADIO, TELEVISION, AND STEREO STORES (ELECTRONIC STORES)",GPC
Statement Date 18/06/2015 to 17/07/2015,Public Health,NCP LIMITED,07/07/2015,3.50,Subsistence - General,Automobile Parking Lots and Garages,GPC
Statement Date 18/06/2015 to 17/07/2015,Public Health,NCP LIMITED,14/07/2015,10.50,Subsistence - General,Automobile Parking Lots and Garages,GPC
Statement Date 18/06/2015 to 17/07/2015,Public Health,RAMADA ENCORE NEWCASTLE G,24/06/2015,130.00,Hospitality - General,"Lodging-Hotels, Motels, Resorts",GPC
Statement Date 18/06/2015 to 17/07/2015,Public Health,RAMADA ENCORE NEWCASTLE G,24/06/2015,130.00,Hospitality - General,"Lodging-Hotels, Motels, Resorts",GPC
Statement Date 18/06/2015 to 17/07/2015,Public Health,TRAINLINE.COM,18/06/2015,122.91,Public Transport -  Staff - General,Passenger Railways,GPC
Statement Date 18/06/2015 to 17/07/2015,Public Health,WWW.BONUSBOND.CO.UK,24/06/2015,32.95,Other Agency & Cont Services - General,Travel Agencies,GPC
"**Amounts stated are net of VAT, except where VAT has not been recovered.",,,,,,,
